Workbook

Sheet PESSOA FÍSICA
A1: CATEGORIA | B1: INSCRIÇÃO | C1: CIDADE | D1: UF | E1: REGIÃO | F1: AVALIADOR | G1: CRITÉRIOS DE AVALIAÇÃO E SELEÇÃO 1 | H1: CRITÉRIOS DE AVALIAÇÃO E SELEÇÃO 2 | I1: CRITÉRIOS DE AVALIAÇÃO E SELEÇÃO 3 | J1: CRITÉRIOS DE AVALIAÇÃO E SELEÇÃO 4 | K1: CRITÉRIOS DE AVALIAÇÃO E SELEÇÃO 5 | L1: CRITÉRIOS DE AVALIAÇÃO E SELEÇÃO 6 | M1: CRITÉRIOS DE AVALIAÇÃO E SELEÇÃO 7 | N1: CRITÉRIOS DE AVALIAÇÃO E SELEÇÃO 8 | O1: PONTUAÇÃO EXTRA - Pessoa com deficiência | P1: PONTUAÇÃO EXTRA - Mulher | Q1: PONTUAÇÃO EXTRA - Pessoa negra | R1: PONTUAÇÃO EXTRA -Indígena, matriz africana, de terreiro ou de povos ou de comunidades tradicionais | S1: PONTUAÇÃO EXTRA LGBTQIA+ | T1: PONTUAÇÃO EXTRA Idosa com 60 anos ou mais? | U1: NOTA POR AVALIADOR | V1: OBSERVAÇÃO | W1: NOTA PRELIMINAR | X1: STATUS
A2: PESSOA FÍSICA | B2: =HYPERLINK("https://mapas.cultura.gov.br/inscricao/1712184650","on-1712184650") -> on-1712184650 | C2: Rio Branco | D2: AC | E2: NORTE | F2: Avaliador 1 | G2: 20 | H2: 15 | I2: 15 | J2: 10 | K2: 10 | L2: 10 | M2: 10 | N2: 10 | O2: 0 | P2: 3 | Q2: 3 | R2: 3 | S2: 0 | T2: 0 | U2: =SUM(G2:T2) -> 109 | W2: =AVERAGE(U2,U3) -> 109 | X2: PRÉ-SELECIONADO
A3: PESSOA FÍSICA | B3: =HYPERLINK("https://mapas.cultura.gov.br/inscricao/1712184650","on-1712184650") -> on-1712184650 | C3: Rio Branco | D3: AC | E3: NORTE | F3: Avaliador 2 | G3: 20 | H3: 15 | I3: 15 | J3: 10 | K3: 10 | L3: 10 | M3: 10 | N3: 10 | O3: 0 | P3: 3 | Q3: 3 | R3: 3 | S3: 0 | T3: 0 | U3: 109 | W3: =W2 -> 109 | X3: =X2 -> PRÉ-SELECIONADO
A4: PESSOA FÍSICA | B4: =HYPERLINK("https://mapas.cultura.gov.br/inscricao/460108823","on-460108823") -> on-460108823 | C4: Manaus | D4: AM | E4: NORTE | F4: Avaliador 1 | G4: 20 | H4: 15 | I4: 15 | J4: 10 | K4: 10 | L4: 10 | M4: 10 | N4: 8 | O4: 0 | P4: 3 | Q4: 0 | R4: 3 | S4: 0 | T4: 0 | U4: 104 | W4: =AVERAGE(U4,U5) -> 105 | X4: PRÉ-SELECIONADO
A5: PESSOA FÍSICA | B5: =HYPERLINK("https://mapas.cultura.gov.br/inscricao/460108823","on-460108823") -> on-460108823 | C5: Manaus | D5: AM | E5: NORTE | F5: Avaliador 2 | G5: 20 | H5: 15 | I5: 15 | J5: 10 | K5: 10 | L5: 10 | M5: 10 | N5: 10 | O5: 0 | P5: 3 | Q5: 0 | R5: 3 | S5: 0 | T5: 0 | U5: 106 | W5: =W4 -> 105 | X5: =X4 -> PRÉ-SELECIONADO
A6: PESSOA FÍSICA | B6: =HYPERLINK("https://mapas.cultura.gov.br/inscricao/788375499","on-788375499") -> on-788375499 | C6: Boa Vista | D6: RR | E6: NORTE | F6: Avaliador 1 | G6: 20 | H6: 15 | I6: 15 | J6: 10 | K6: 10 | L6: 10 | M6: 10 | N6: 10 | O6: 0 | P6: 3 | Q6: 0 | R6: 0 | S6: 0 | T6: 0 | U6: 103 | W6: =AVERAGE(U6,U7) -> 103 | X6: PRÉ-SELECIONADO
A7: PESSOA FÍSICA | B7: =HYPERLINK("https://mapas.cultura.gov.br/inscricao/788375499","on-788375499") -> on-788375499 | C7: Boa Vista | D7: RR | E7: NORTE | F7: Avaliador 2 | G7: 20 | H7: 15 | I7: 15 | J7: 10 | K7: 10 | L7: 10 | M7: 10 | N7: 10 | O7: 0 | P7: 3 | Q7: 0 | R7: 0 | S7: 0 | T7: 0 | U7: 103 | W7: =W6 -> 103 | X7: =X6 -> PRÉ-SELECIONADO
A8: PESSOA FÍSICA | B8: =HYPERLINK("https://mapas.cultura.gov.br/inscricao/1830724354","on-1830724354") -> on-1830724354 | C8: Rio Branco | D8: AC | E8: NORTE | F8: Avaliador 1 | G8: 20 | H8: 15 | I8: 15 | J8: 8 | K8: 8 | L8: 10 | M8: 10 | N8: 8 | O8: 0 | P8: 0 | Q8: 3 | R8: 3 | S8: 0 | T8: 0 | U8: 100 | W8: =AVERAGE(U8,U9) -> 103 | X8: PRÉ-SELECIONADO
A9: PESSOA FÍSICA | B9: =HYPERLINK("https://mapas.cultura.gov.br/inscricao/1830724354","on-1830724354") -> on-1830724354 | C9: Rio Branco | D9: AC | E9: NORTE | F9: Avaliador 2 | G9: 20 | H9: 15 | I9: 15 | J9: 10 | K9: 10 | L9: 10 | M9: 10 | N9: 10 | O9: 0 | P9: 0 | Q9: 3 | R9: 3 | S9: 0 | T9: 0 | U9: 106 | W9: =W8 -> 103 | X9: =X8 -> PRÉ-SELECIONADO
A10: PESSOA FÍSICA | B10: =HYPERLINK("https://M21","on-786160688") -> on-786160688 | C10: Belém | D10: PA | E10: NORTE | F10: Avaliador 1 | G10: 20 | H10: 15 | I10: 15 | J10: 10 | K10: 10 | L10: 10 | M10: 10 | N10: 10 | O10: 0 | P10: 0 | Q10: 3 | R10: 0 | S10: 0 | T10: 0 | U10: 103 | W10: =AVERAGE(U10,U11) -> 103 | X10: PRÉ-SELECIONADO
A11: PESSOA FÍSICA | B11: =HYPERLINK("https://mapas.cultura.gov.br/inscricao/786160688","on-786160688") -> on-786160688 | C11: Belém | D11: PA | E11: NORTE | F11: Avaliador 2 | G11: 20 | H11: 15 | I11: 15 | J11: 10 | K11: 10 | L11: 10 | M11: 10 | N11: 10 | O11: 0 | P11: 0 | Q11: 3 | R11: 0 | S11: 0 | T11: 0 | U11: 103 | W11: =W10 -> 103 | X11: =X10 -> PRÉ-SELECIONADO
A12: PESSOA FÍSICA | B12: =HYPERLINK("https://mapas.cultura.gov.br/inscricao/1783398619","on-1783398619") -> on-1783398619 | C12: Porto Velho | D12: RO | E12: NORTE | F12: Avaliador 1 | G12: 20 | H12: 15 | I12: 15 | J12: 10 | K12: 10 | L12: 10 | M12: 10 | N12: 10 | O12: 0 | P12: 0 | Q12: 3 | R12: 0 | S12: 0 | T12: 0 | U12: 103 | W12: =AVERAGE(U12,U13) -> 103 | X12: PRÉ-SELECIONADO
A13: PESSOA FÍSICA | B13: =HYPERLINK("https://mapas.cultura.gov.br/inscricao/1783398619","on-1783398619") -> on-1783398619 | C13: Porto Velho | D13: RO | E13: NORTE | F13: Avaliador 2 | G13: 20 | H13: 15 | I13: 15 | J13: 10 | K13: 10 | L13: 10 | M13: 10 | N13: 10 | O13: 0 | P13: 0 | Q13: 3 | R13: 0 | S13: 0 | T13: 0 | U13: 103 | W13: =W12 -> 103 | X13: =X12 -> PRÉ-SELECIONADO
A14: PESSOA FÍSICA | B14: =HYPERLINK("https://mapas.cultura.gov.br/inscricao/2086140762","on-2086140762") -> on-2086140762 | C14: Tucuruí | D14: PA | E14: NORTE | F14: Avaliador 1 | G14: 20 | H14: 15 | I14: 15 | J14: 10 | K14: 10 | L14: 10 | M14: 10 | N14: 10 | O14: 0 | P14: 0 | Q14: 0 | R14: 3 | S14: 0 | T14: 0 | U14: 103 | W14: =AVERAGE(U14,U15) -> 103 | X14: PRÉ-SELECIONADO
A15: PESSOA FÍSICA | B15: =HYPERLINK("https://mapas.cultura.gov.br/inscricao/2086140762","on-2086140762") -> on-2086140762 | C15: Tucuruí | D15: PA | E15: NORTE | F15: Avaliador 2 | G15: 20 | H15: 15 | I15: 15 | J15: 10 | K15: 10 | L15: 10 | M15: 10 | N15: 10 | O15: 0 | P15: 0 | Q15: 0 | R15: 3 | S15: 0 | T15: 0 | U15: 103 | W15: =W14 -> 103 | X15: =X14 -> PRÉ-SELECIONADO
A16: PESSOA FÍSICA | B16: =HYPERLINK("https://mapas.cultura.gov.br/inscricao/2092364437","on-2092364437") -> on-2092364437 | C16: Rio Branco | D16: AC | E16: NORTE | F16: Avaliador 1 | G16: 20 | H16: 15 | I16: 15 | J16: 10 | K16: 10 | L16: 10 | M16: 10 | N16: 8 | O16: 0 | P16: 0 | Q16: 3 | R16: 0 | S16: 0 | T16: 0 | U16: 101 | W16: =AVERAGE(U16,U17) -> 102 | X16: PRÉ-SELECIONADO
A17: PESSOA FÍSICA | B17: =HYPERLINK("https://mapas.cultura.gov.br/inscricao/2092364437","on-2092364437") -> on-2092364437 | C17: Rio Branco | D17: AC | E17: NORTE | F17: Avaliador 2 | G17: 20 | H17: 15 | I17: 15 | J17: 10 | K17: 10 | L17: 10 | M17: 10 | N17: 10 | O17: 0 | P17: 0 | Q17: 3 | R17: 0 | S17: 0 | T17: 0 | U17: 103 | W17: =W16 -> 102 | X17: =X16 -> PRÉ-SELECIONADO
A18: PESSOA FÍSICA | B18: =HYPERLINK("https://mapas.cultura.gov.br/inscricao/820966293","on-820966293") -> on-820966293 | C18: Manaus | D18: AM | E18: NORTE | F18: Avaliador 1 | G18: 20 | H18: 15 | I18: 15 | J18: 8 | K18: 10 | L18: 10 | M18: 10 | N18: 10 | O18: 0 | P18: 0 | Q18: 3 | R18: 0 | S18: 0 | T18: 0 | U18: 101 | W18: =AVERAGE(U18,U19) -> 102 | X18: PRÉ-SELECIONADO
A19: PESSOA FÍSICA | B19: =HYPERLINK("https://mapas.cultura.gov.br/inscricao/820966293","on-820966293") -> on-820966293 | C19: Manaus | D19: AM | E19: NORTE | F19: Avaliador 2 | G19: 20 | H19: 15 | I19: 15 | J19: 10 | K19: 10 | L19: 10 | M19: 10 | N19: 10 | O19: 0 | P19: 0 | Q19: 3 | R19: 0 | S19: 0 | T19: 0 | U19: 103 | W19: =W18 -> 102 | X19: =X18 -> PRÉ-SELECIONADO
A20: PESSOA FÍSICA | B20: =HYPERLINK("https://mapas.cultura.gov.br/inscricao/2040967282","on-2040967282") -> on-2040967282 | C20: Manaus | D20: AM | E20: NORTE | F20: Avaliador 1 | G20: 20 | H20: 15 | I20: 15 | J20: 10 | K20: 8 | L20: 10 | M20: 10 | N20: 10 | O20: 0 | P20: 0 | Q20: 3 | R20: 0 | S20: 0 | T20: 0 | U20: 101 | W20: =AVERAGE(U20,U21) -> 102 | X20: PRÉ-SELECIONADO
A21: PESSOA FÍSICA | B21: =HYPERLINK("https://mapas.cultura.gov.br/inscricao/2040967282","on-2040967282") -> on-2040967282 | C21: Manaus | D21: AM | E21: NORTE | F21: Avaliador 2 | G21: 20 | H21: 15 | I21: 15 | J21: 10 | K21: 10 | L21: 10 | M21: 10 | N21: 10 | O21: 0 | P21: 0 | Q21: 3 | R21: 0 | S21: 0 | T21: 0 | U21: 103 | W21: =W20 -> 102 | X21: =X20 -> PRÉ-SELECIONADO
A22: PESSOA FÍSICA | B22: =HYPERLINK("https://mapas.cultura.gov.br/inscricao/1566965679","on-1566965679") -> on-1566965679 | C22: Belém | D22: PA | E22: NORTE | F22: Avaliador 1 | G22: 20 | H22: 15 | I22: 15 | J22: 10 | K22: 10 | L22: 10 | M22: 10 | N22: 8 | O22: 0 | P22: 0 | Q22: 3 | R22: 0 | S22: 0 | T22: 0 | U22: 101 | W22: =AVERAGE(U22,U23) -> 102 | X22: PRÉ-SELECIONADO
A23: PESSOA FÍSICA | B23: =HYPERLINK("https://mapas.cultura.gov.br/inscricao/1566965679","on-1566965679") -> on-1566965679 | C23: Belém | D23: PA | E23: NORTE | F23: Avaliador 2 | G23: 20 | H23: 15 | I23: 15 | J23: 10 | K23: 10 | L23: 10 | M23: 10 | N23: 10 | O23: 0 | P23: 0 | Q23: 3 | R23: 0 | S23: 0 | T23: 0 | U23: 103 | W23: =W22 -> 102 | X23: =X22 -> PRÉ-SELECIONADO
A24: PESSOA FÍSICA | B24: =HYPERLINK("https://mapas.cultura.gov.br/inscricao/1147256741","on-1147256741") -> on-1147256741 | C24: Belém | D24: PA | E24: NORTE | F24: Avaliador 1 | G24: 20 | H24: 15 | I24: 15 | J24: 10 | K24: 10 | L24: 10 | M24: 10 | N24: 10 | O24: 0 | P24: 3 | Q24: 3 | R24: 3 | S24: 0 | T24: 0 | U24: 109 | W24: =AVERAGE(U24,U25) -> 101 | X24: PRÉ-SELECIONADO
A25: PESSOA FÍSICA | B25: =HYPERLINK("https://mapas.cultura.gov.br/inscricao/1147256741","on-1147256741") -> on-1147256741 | C25: Belém | D25: PA | E25: NORTE | F25: Avaliador 2 | G25: 20 | H25: 15 | I25: 15 | J25: 8 | K25: 10 | L25: 8 | M25: 5 | N25: 3 | O25: 0 | P25: 3 | Q25: 3 | R25: 3 | S25: 0 | T25: 0 | U25: 93 | W25: =W24 -> 101 | X25: =X24 -> PRÉ-SELECIONADO
A26: PESSOA FÍSICA | B26: =HYPERLINK("https://mapas.cultura.gov.br/inscricao/116315979","on-116315979") -> on-116315979 | C26: Macapá | D26: AP | E26: NORTE | F26: Avaliador 1 | G26: 20 | H26: 15 | I26: 15 | J26: 8 | K26: 10 | L26: 10 | M26: 10 | N26: 10 | O26: 0 | P26: 0 | Q26: 3 | R26: 0 | S26: 0 | T26: 0 | U26: 101 | W26: =AVERAGE(U26,U27) -> 99 | X26: PRÉ-SELECIONADO
A27: PESSOA FÍSICA | B27: =HYPERLINK("https://mapas.cultura.gov.br/inscricao/116315979","on-116315979") -> on-116315979 | C27: Macapá | D27: AP | E27: NORTE | F27: Avaliador 2 | G27: 20 | H27: 15 | I27: 15 | J27: 8 | K27: 8 | L27: 10 | M27: 10 | N27: 8 | O27: 0 | P27: 0 | Q27: 3 | R27: 0 | S27: 0 | T27: 0 | U27: 97 | W27: =W26 -> 99 | X27: =X26 -> PRÉ-SELECIONADO
A28: PESSOA FÍSICA | B28: =HYPERLINK("https://mapas.cultura.gov.br/inscricao/352364605","on-352364605") -> on-352364605 | C28: Belém | D28: PA | E28: NORTE | F28: Avaliador 1 | G28: 20 | H28: 15 | I28: 15 | J28: 10 | K28: 10 | L28: 10 | M28: 10 | N28: 10 | O28: 0 | P28: 3 | Q28: 3 | R28: 0 | S28: 3 | T28: 0 | U28: 109 | W28: =AVERAGE(U28,U29) -> 99 | X28: PRÉ-SELECIONADO
A29: PESSOA FÍSICA | B29: =HYPERLINK("https://mapas.cultura.gov.br/inscricao/352364605","on-352364605") -> on-352364605 | C29: Belém | D29: PA | E29: NORTE | F29: Avaliador 2 | G29: 20 | H29: 8 | I29: 15 | J29: 8 | K29: 8 | L29: 8 | M29: 5 | N29: 8 | O29: 0 | P29: 3 | Q29: 3 | R29: 0 | S29: 3 | T29: 0 | U29: 89 | W29: =W28 -> 99 | X29: =X28 -> PRÉ-SELECIONADO
A30: PESSOA FÍSICA | B30: =HYPERLINK("https://mapas.cultura.gov.br/inscricao/1289127359","on-1289127359") -> on-1289127359 | C30: Belém | D30: PA | E30: NORTE | F30: Avaliador 1 | G30: 15 | H30: 12 | I30: 4 | J30: 3 | K30: 10 | L30: 10 | M30: 10 | N30: 10 | O30: 0 | P30: 3 | Q30: 3 | R30: 3 | S30: 3 | T30: 0 | U30: 86 | W30: =AVERAGE(U30,U31) -> 99 | X30: PRÉ-SELECIONADO
A31: PESSOA FÍSICA | B31: =HYPERLINK("https://mapas.cultura.gov.br/inscricao/1289127359","on-1289127359") -> on-1289127359 | C31: Belém | D31: PA | E31: NORTE | F31: Avaliador 2 | G31: 20 | H31: 15 | I31: 15 | J31: 10 | K31: 10 | L31: 10 | M31: 10 | N31: 10 | O31: 0 | P31: 3 | Q31: 3 | R31: 3 | S31: 3 | T31: 0 | U31: 112 | W31: =W30 -> 99 | X31: =X30 -> PRÉ-SELECIONADO
A32: PESSOA FÍSICA | B32: =HYPERLINK("https://mapas.cultura.gov.br/inscricao/707377191","on-707377191") -> on-707377191 | C32: Belém | D32: PA | E32: NORTE | F32: Avaliador 1 | G32: 20 | H32: 15 | I32: 15 | J32: 10 | K32: 10 | L32: 10 | M32: 10 | N32: 10 | O32: 0 | P32: 0 | Q32: 3 | R32: 0 | S32: 0 | T32: 0 | U32: 103 | W32: =AVERAGE(U32,U33) -> 97.5 | X32: PRÉ-SELECIONADO
A33: PESSOA FÍSICA | B33: =HYPERLINK("https://mapas.cultura.gov.br/inscricao/707377191","on-707377191") -> on-707377191 | C33: Belém | D33: PA | E33: NORTE | F33: Avaliador 2 | G33: 20 | H33: 15 | I33: 15 | J33: 5 | K33: 8 | L33: 8 | M33: 8 | N33: 10 | O33: 0 | P33: 0 | Q33: 3 | R33: 0 | S33: 0 | T33: 0 | U33: 92 | W33: =W32 -> 97.5 | X33: =X32 -> PRÉ-SELECIONADO
A34: PESSOA FÍSICA | B34: =HYPERLINK("https://mapas.cultura.gov.br/inscricao/34923617","on-34923617") -> on-34923617 | C34: Belém | D34: PA | E34: NORTE | F34: Avaliador 1 | G34: 20 | H34: 15 | I34: 15 | J34: 10 | K34: 10 | L34: 10 | M34: 10 | N34: 10 | O34: 0 | P34: 0 | Q34: 3 | R34: 0 | S34: 0 | T34: 0 | U34: =SUM(G34:T34) -> 103 | W34: =AVERAGE(U34,U35) -> 97.5 | X34: PRÉ-SELECIONADO
A35: PESSOA FÍSICA | B35: =HYPERLINK("https://mapas.cultura.gov.br/inscricao/34923617","on-34923617") -> on-34923617 | C35: Belém | D35: PA | E35: NORTE | F35: Avaliador 2 | G35: 20 | H35: 12 | I35: 15 | J35: 8 | K35: 8 | L35: 8 | M35: 8 | N35: 10 | O35: 0 | P35: 0 | Q35: 3 | R35: 0 | S35: 0 | T35: 0 | U35: 92 | W35: =W34 -> 97.5 | X35: =X34 -> PRÉ-SELECIONADO
A36: PESSOA FÍSICA | B36: =HYPERLINK("https://mapas.cultura.gov.br/inscricao/1158656174","on-1158656174") -> on-1158656174 | C36: Belém | D36: PA | E36: NORTE | F36: Avaliador 1 | G36: 20 | H36: 15 | I36: 15 | J36: 10 | K36: 10 | L36: 10 | M36: 10 | N36: 10 | O36: 0 | P36: 0 | Q36: 3 | R36: 0 | S36: 0 | T36: 0 | U36: 103 | W36: =AVERAGE(U36,U37) -> 97.5 | X36: PRÉ-SELECIONADO
A37: PESSOA FÍSICA | B37: =HYPERLINK("https://mapas.cultura.gov.br/inscricao/1158656174","on-1158656174") -> on-1158656174 | C37: Belém | D37: PA | E37: NORTE | F37: Avaliador 2 | G37: 15 | H37: 15 | I37: 15 | J37: 10 | K37: 8 | L37: 8 | M37: 10 | N37: 8 | O37: 0 | P37: 0 | Q37: 3 | R37: 0 | S37: 0 | T37: 0 | U37: 92 | W37: =W36 -> 97.5 | X37: =X36 -> PRÉ-SELECIONADO
A38: PESSOA FÍSICA | B38: =HYPERLINK("https://mapas.cultura.gov.br/inscricao/853338553","on-853338553") -> on-853338553 | C38: Palmas | D38: TO | E38: NORTE | F38: Avaliador 1 | G38: 15 | H38: 15 | I38: 12 | J38: 8 | K38: 8 | L38: 8 | M38: 8 | N38: 5 | O38: 0 | P38: 3 | Q38: 3 | R38: 0 | S38: 3 | T38: 0 | U38: 88 | W38: =AVERAGE(U38,U39) -> 97.5 | X38: PRÉ-SELECIONADO
A39: PESSOA FÍSICA | B39: =HYPERLINK("https://mapas.cultura.gov.br/inscricao/853338553","on-853338553") -> on-853338553 | C39: Palmas | D39: TO | E39: NORTE | F39: Avaliador 2 | G39: 20 | H39: 15 | I39: 15 | J39: 10 | K39: 10 | L39: 10 | M39: 10 | N39: 8 | O39: 0 | P39: 3 | Q39: 3 | R39: 0 | S39: 3 | T39: 0 | U39: 107 | W39: =W38 -> 97.5 | X39: =X38 -> PRÉ-SELECIONADO
A40: PESSOA FÍSICA | B40: =HYPERLINK("https://mapas.cultura.gov.br/inscricao/540705762","on-540705762") -> on-540705762 | C40: Manaus | D40: AM | E40: NORTE | F40: Avaliador 1 | G40: 20 | H40: 15 | I40: 15 | J40: 10 | K40: 8 | L40: 10 | M40: 10 | N40: 0 | O40: 0 | P40: 3 | Q40: 0 | R40: 0 | S40: 0 | T40: 0 | U40: 91 | W40: =AVERAGE(U40,U41) -> 97 | X40: PRÉ-SELECIONADO
A41: PESSOA FÍSICA | B41: =HYPERLINK("https://mapas.cultura.gov.br/inscricao/540705762","on-540705762") -> on-540705762 | C41: Manaus | D41: AM | E41: NORTE | F41: Avaliador 2 | G41: 20 | H41: 15 | I41: 15 | J41: 10 | K41: 10 | L41: 10 | M41: 10 | N41: 10 | O41: 0 | P41: 3 | Q41: 0 | R41: 0 | S41: 0 | T41: 0 | U41: 103 | W41: =W40 -> 97 | X41: =X40 -> PRÉ-SELECIONADO
A42: PESSOA FÍSICA | B42: =HYPERLINK("https://mapas.cultura.gov.br/inscricao/29008895","on-29008895") -> on-29008895 | C42: Manaus | D42: AM | E42: NORTE | F42: Avaliador 1 | G42: 20 | H42: 15 | I42: 15 | J42: 8 | K42: 8 | L42: 10 | M42: 8 | N42: 10 | O42: 0 | P42: 0 | Q42: 0 | R42: 0 | S42: 0 | T42: 0 | U42: 94 | W42: =AVERAGE(U42,U43) -> 97 | X42: PRÉ-SELECIONADO
A43: PESSOA FÍSICA | B43: =HYPERLINK("https://mapas.cultura.gov.br/inscricao/29008895","on-29008895") -> on-29008895 | C43: Manaus | D43: AM | E43: NORTE | F43: Avaliador 2 | G43: 20 | H43: 15 | I43: 15 | J43: 10 | K43: 10 | L43: 10 | M43: 10 | N43: 10 | O43: 0 | P43: 0 | Q43: 0 | R43: 0 | S43: 0 | T43: 0 | U43: 100 | W43: =W42 -> 97 | X43: =X42 -> PRÉ-SELECIONADO
A44: PESSOA FÍSICA | B44: =HYPERLINK("https://mapas.cultura.gov.br/inscricao/1337959666","on-1337959666") -> on-1337959666 | C44: Manaus | D44: AM | E44: NORTE | F44: Avaliador 1 | G44: 15 | H44: 12 | I44: 15 | J44: 10 | K44: 8 | L44: 10 | M44: 8 | N44: 10 | O44: 0 | P44: 3 | Q44: 3 | R44: 0 | S44: 3 | T44: 0 | U44: 97 | W44: =AVERAGE(U44,U45) -> 97 | X44: PRÉ-SELECIONADO
A45: PESSOA FÍSICA | B45: =HYPERLINK("https://mapas.cultura.gov.br/inscricao/1337959666","on-1337959666") -> on-1337959666 | C45: Manaus | D45: AM | E45: NORTE | F45: Avaliador 2 | G45: 15 | H45: 12 | I45: 15 | J45: 10 | K45: 8 | L45: 10 | M45: 8 | N45: 10 | O45: 0 | P45: 3 | Q45: 3 | R45: 0 | S45: 3 | T45: 0 | U45: 97 | W45: =W44 -> 97 | X45: =X44 -> PRÉ-SELECIONADO
A46: PESSOA FÍSICA | B46: =HYPERLINK("https://mapas.cultura.gov.br/inscricao/1864025678","on-1864025678") -> on-1864025678 | C46: Sena Madureira | D46: AC | E46: NORTE | F46: Avaliador 1 | G46: 15 | H46: 15 | I46: 15 | J46: 8 | K46: 8 | L46: 10 | M46: 10 | N46: 10 | O46: 0 | P46: 0 | Q46: 0 | R46: 3 | S46: 0 | T46: 0 | U46: 94 | W46: =AVERAGE(U46,U47) -> 96 | X46: PRÉ-SELECIONADO
A47: PESSOA FÍSICA | B47: =HYPERLINK("https://mapas.cultura.gov.br/inscricao/1864025678","on-1864025678") -> on-1864025678 | C47: Sena Madureira | D47: AC | E47: NORTE | F47: Avaliador 2 | G47: 15 | H47: 15 | I47: 15 | J47: 10 | K47: 10 | L47: 10 | M47: 10 | N47: 10 | O47: 0 | P47: 0 | Q47: 0 | R47: 3 | S47: 0 | T47: 0 | U47: 98 | W47: =W46 -> 96 | X47: =X46 -> PRÉ-SELECIONADO
A48: PESSOA FÍSICA | B48: =HYPERLINK("https://mapas.cultura.gov.br/inscricao/2111609921","on-2111609921") -> on-2111609921 | C48: Sena Madureira | D48: AC | E48: NORTE | F48: Avaliador 1 | G48: 15 | H48: 15 | I48: 15 | J48: 8 | K48: 8 | L48: 10 | M48: 8 | N48: 8 | O48: 0 | P48: 0 | Q48: 3 | R48: 0 | S48: 0 | T48: 0 | U48: 90 | W48: =AVERAGE(U48,U49) -> 95.5 | X48: PRÉ-SELECIONADO
A49: PESSOA FÍSICA | B49: =HYPERLINK("https://mapas.cultura.gov.br/inscricao/2111609921","on-2111609921") -> on-2111609921 | C49: Sena Madureira | D49: AC | E49: NORTE | F49: Avaliador 2 | G49: 20 | H49: 15 | I49: 15 | J49: 10 | K49: 8 | L49: 10 | M49: 10 | N49: 10 | O49: 0 | P49: 0 | Q49: 3 | R49: 0 | S49: 0 | T49: 0 | U49: 101 | W49: =W48 -> 95.5 | X49: =X48 -> PRÉ-SELECIONADO
A50: PESSOA FÍSICA | B50: =HYPERLINK("https://mapas.cultura.gov.br/inscricao/1928495555","on-1928495555") -> on-1928495555 | C50: Boa Vista | D50: RR | E50: NORTE | F50: Avaliador 1 | G50: 20 | H50: 15 | I50: 15 | J50: 8 | K50: 8 | L50: 8 | M50: 8 | N50: 10 | O50: 0 | P50: 0 | Q50: 3 | R50: 0 | S50: 0 | T50: 0 | U50: 95 | W50: =AVERAGE(U50,U51) -> 95 | X50: PRÉ-SELECIONADO
A51: PESSOA FÍSICA | B51: =HYPERLINK("https://mapas.cultura.gov.br/inscricao/1928495555","on-1928495555") -> on-1928495555 | C51: Boa Vista | D51: RR | E51: NORTE | F51: Avaliador 2 | G51: 20 | H51: 15 | I51: 15 | J51: 8 | K51: 8 | L51: 8 | M51: 8 | N51: 10 | O51: 0 | P51: 0 | Q51: 3 | R51: 0 | S51: 0 | T51: 0 | U51: 95 | W51: =W50 -> 95 | X51: =X50 -> PRÉ-SELECIONADO
A52: PESSOA FÍSICA | B52: =HYPERLINK("https://mapas.cultura.gov.br/inscricao/1536531018","on-1536531018") -> on-1536531018 | C52: Manaus | D52: AM | E52: NORTE | F52: Avaliador 1 | G52: 20 | H52: 15 | I52: 15 | J52: 8 | K52: 10 | L52: 10 | M52: 10 | N52: 10 | O52: 3 | P52: 0 | Q52: 3 | R52: 0 | S52: 0 | T52: 0 | U52: 104 | W52: =AVERAGE(U52,U53) -> 94.5 | X52: PRÉ-SELECIONADO
A53: PESSOA FÍSICA | B53: =HYPERLINK("https://mapas.cultura.gov.br/inscricao/1536531018","on-1536531018") -> on-1536531018 | C53: Manaus | D53: AM | E53: NORTE | F53: Avaliador 2 | G53: 15 | H53: 12 | I53: 12 | J53: 8 | K53: 8 | L53: 8 | M53: 8 | N53: 8 | O53: 3 | P53: 0 | Q53: 3 | R53: 0 | S53: 0 | T53: 0 | U53: 85 | W53: =W52 -> 94.5 | X53: =X52 -> PRÉ-SELECIONADO
A54: PESSOA FÍSICA | B54: =HYPERLINK("https://mapas.cultura.gov.br/inscricao/1564793640","on-1564793640") -> on-1564793640 | C54: Boa Vista | D54: RR | E54: NORTE | F54: Avaliador 1 | G54: 20 | H54: 15 | I54: 15 | J54: 10 | K54: 10 | L54: 10 | M54: 10 | N54: 10 | O54: 0 | P54: 0 | Q54: 0 | R54: 0 | S54: 0 | T54: 0 | U54: 100 | W54: =AVERAGE(U54,U55) -> 93.5 | X54: PRÉ-SELECIONADO
A55: PESSOA FÍSICA | B55: =HYPERLINK("https://mapas.cultura.gov.br/inscricao/1564793640","on-1564793640") -> on-1564793640 | C55: Boa Vista | D55: RR | E55: NORTE | F55: Avaliador 2 | G55: 20 | H55: 15 | I55: 15 | J55: 8 | K55: 8 | L55: 8 | M55: 8 | N55: 5 | O55: 0 | P55: 0 | Q55: 0 | R55: 0 | S55: 0 | T55: 0 | U55: 87 | W55: =W54 -> 93.5 | X55: =X54 -> PRÉ-SELECIONADO
A56: PESSOA FÍSICA | B56: =HYPERLINK("https://mapas.cultura.gov.br/inscricao/1693822665","on-1693822665") -> on-1693822665 | C56: Palmas | D56: TO | E56: NORTE | F56: Avaliador 1 | G56: 15 | H56: 15 | I56: 12 | J56: 8 | K56: 8 | L56: 10 | M56: 8 | N56: 5 | O56: 0 | P56: 3 | Q56: 3 | R56: 0 | S56: 0 | T56: 0 | U56: 87 | W56: =AVERAGE(U56,U57) -> 93.5 | X56: PRÉ-SELECIONADO
A57: PESSOA FÍSICA | B57: =HYPERLINK("https://mapas.cultura.gov.br/inscricao/1693822665","on-1693822665") -> on-1693822665 | C57: Palmas | D57: TO | E57: NORTE | F57: Avaliador 2 | G57: 20 | H57: 15 | I57: 15 | J57: 10 | K57: 8 | L57: 10 | M57: 8 | N57: 8 | O57: 0 | P57: 3 | Q57: 3 | R57: 0 | S57: 0 | T57: 0 | U57: 100 | W57: =W56 -> 93.5 | X57: =X56 -> PRÉ-SELECIONADO
A58: PESSOA FÍSICA | B58: =HYPERLINK("https://mapas.cultura.gov.br/inscricao/714725731","on-714725731") -> on-714725731 | C58: Boa Vista | D58: RR | E58: NORTE | F58: Avaliador 1 | G58: 20 | H58: 15 | I58: 15 | J58: 8 | K58: 8 | L58: 8 | M58: 8 | N58: 8 | O58: 0 | P58: 0 | Q58: 3 | R58: 0 | S58: 0 | T58: 0 | U58: 93 | W58: =AVERAGE(U58,U59) -> 93 | X58: PRÉ-SELECIONADO
A59: PESSOA FÍSICA | B59: =HYPERLINK("https://mapas.cultura.gov.br/inscricao/714725731","on-714725731") -> on-714725731 | C59: Boa Vista | D59: RR | E59: NORTE | F59: Avaliador 2 | G59: 20 | H59: 15 | I59: 15 | J59: 8 | K59: 8 | L59: 8 | M59: 8 | N59: 8 | O59: 0 | P59: 0 | Q59: 3 | R59: 0 | S59: 0 | T59: 0 | U59: 93 | W59: =W58 -> 93 | X59: =X58 -> PRÉ-SELECIONADO
A60: PESSOA FÍSICA | B60: =HYPERLINK("https://mapas.cultura.gov.br/inscricao/623176340","on-623176340") -> on-623176340 | C60: Macapá | D60: AP | E60: NORTE | F60: Avaliador 1 | G60: 20 | H60: 15 | I60: 15 | J60: 10 | K60: 8 | L60: 10 | M60: 8 | N60: 8 | O60: 0 | P60: 0 | Q60: 0 | R60: 0 | S60: 0 | T60: 0 | U60: 94 | W60: =AVERAGE(U60,U61) -> 93 | X60: PRÉ-SELECIONADO
A61: PESSOA FÍSICA | B61: =HYPERLINK("https://mapas.cultura.gov.br/inscricao/623176340","on-623176340") -> on-623176340 | C61: Macapá | D61: AP | E61: NORTE | F61: Avaliador 2 | G61: 20 | H61: 15 | I61: 15 | J61: 10 | K61: 8 | L61: 8 | M61: 8 | N61: 8 | O61: 0 | P61: 0 | Q61: 0 | R61: 0 | S61: 0 | T61: 0 | U61: 92 | W61: =W60 -> 93 | X61: =X60 -> PRÉ-SELECIONADO
A62: PESSOA FÍSICA | B62: =HYPERLINK("https://mapas.cultura.gov.br/inscricao/339791600","on-339791600") -> on-339791600 | C62: Porto Nacional | D62: TO | E62: NORTE | F62: Avaliador 1 | G62: 20 | H62: 12 | I62: 15 | J62: 8 | K62: 8 | L62: 10 | M62: 10 | N62: 8 | O62: 0 | P62: 0 | Q62: 0 | R62: 0 | S62: 0 | T62: 0 | U62: 91 | W62: =AVERAGE(U62,U63) -> 93 | X62: PRÉ-SELECIONADO
A63: PESSOA FÍSICA | B63: =HYPERLINK("https://mapas.cultura.gov.br/inscricao/339791600","on-339791600") -> on-339791600 | C63: Porto Nacional | D63: TO | E63: NORTE | F63: Avaliador 2 | G63: 20 | H63: 12 | I63: 15 | J63: 10 | K63: 8 | L63: 10 | M63: 10 | N63: 10 | O63: 0 | P63: 0 | Q63: 0 | R63: 0 | S63: 0 | T63: 0 | U63: 95 | W63: =W62 -> 93 | X63: =X62 -> PRÉ-SELECIONADO
A64: PESSOA FÍSICA | B64: =HYPERLINK("https://mapas.cultura.gov.br/inscricao/1781445868","on-1781445868") -> on-1781445868 | C64: Macapá | D64: AP | E64: NORTE | F64: Avaliador 1 | G64: 15 | H64: 15 | I64: 15 | J64: 8 | K64: 10 | L64: 10 | M64: 10 | N64: 10 | O64: 0 | P64: 0 | Q64: 3 | R64: 0 | S64: 0 | T64: 0 | U64: 96 | W64: =AVERAGE(U64,U65) -> 93 | X64: PRÉ-SELECIONADO
A65: PESSOA FÍSICA | B65: =HYPERLINK("https://mapas.cultura.gov.br/inscricao/1781445868","on-1781445868") -> on-1781445868 | C65: Macapá | D65: AP | E65: NORTE | F65: Avaliador 2 | G65: 20 | H65: 15 | I65: 12 | J65: 8 | K65: 8 | L65: 8 | M65: 8 | N65: 8 | O65: 0 | P65: 0 | Q65: 3 | R65: 0 | S65: 0 | T65: 0 | U65: 90 | W65: =W64 -> 93 | X65: =X64 -> PRÉ-SELECIONADO
A66: PESSOA FÍSICA | B66: =HYPERLINK("https://mapas.cultura.gov.br/inscricao/1614776339","on-1614776339") -> on-1614776339 | C66: Palmas | D66: TO | E66: NORTE | F66: Avaliador 1 | G66: 15 | H66: 15 | I66: 15 | J66: 8 | K66: 8 | L66: 10 | M66: 8 | N66: 5 | O66: 0 | P66: 0 | Q66: 3 | R66: 0 | S66: 0 | T66: 0 | U66: =SUM(G66:T66) -> 87 | W66: =AVERAGE(U66,U67) -> 93 | X66: PRÉ-SELECIONADO
A67: PESSOA FÍSICA | B67: =HYPERLINK("https://mapas.cultura.gov.br/inscricao/1614776339","on-1614776339") -> on-1614776339 | C67: Palmas | D67: TO | E67: NORTE | F67: Avaliador 2 | G67: 20 | H67: 15 | I67: 15 | J67: 10 | K67: 8 | L67: 10 | M67: 10 | N67: 8 | O67: 0 | P67: 0 | Q67: 3 | R67: 0 | S67: 0 | T67: 0 | U67: 99 | W67: =W66 -> 93 | X67: =X66 -> PRÉ-SELECIONADO
A68: PESSOA FÍSICA | B68: =HYPERLINK("https://mapas.cultura.gov.br/inscricao/280420935","on-280420935") -> on-280420935 | C68: Ariquemes | D68: RO | E68: NORTE | F68: Avaliador 1 | G68: 20 | H68: 15 | I68: 15 | J68: 10 | K68: 10 | L68: 10 | M68: 3 | N68: 3 | O68: 0 | P68: 3 | Q68: 3 | R68: 3 | S68: 3 | T68: 0 | U68: 98 | W68: =AVERAGE(U68,U69) -> 93 | X68: PRÉ-SELECIONADO
A69: PESSOA FÍSICA | B69: =HYPERLINK("https://mapas.cultura.gov.br/inscricao/280420935","on-280420935") -> on-280420935 | C69: Ariquemes | D69: RO | E69: NORTE | F69: Avaliador 2 | G69: 15 | H69: 12 | I69: 15 | J69: 5 | K69: 8 | L69: 8 | M69: 8 | N69: 5 | O69: 0 | P69: 3 | Q69: 3 | R69: 3 | S69: 3 | T69: 0 | U69: 88 | W69: =W68 -> 93 | X69: =X68 -> PRÉ-SELECIONADO
A70: PESSOA FÍSICA | B70: =HYPERLINK("https://mapas.cultura.gov.br/inscricao/1407765043","on-1407765043") -> on-1407765043 | C70: Vilhena | D70: RO | E70: NORTE | F70: Avaliador 1 | G70: 10 | H70: 8 | I70: 12 | J70: 10 | K70: 10 | L70: 10 | M70: 10 | N70: 10 | O70: 0 | P70: 0 | Q70: 3 | R70: 0 | S70: 0 | T70: 0 | U70: 83 | W70: =AVERAGE(U70,U71) -> 93 | X70: PRÉ-SELECIONADO
A71: PESSOA FÍSICA | B71: =HYPERLINK("https://mapas.cultura.gov.br/inscricao/1407765043","on-1407765043") -> on-1407765043 | C71: Vilhena | D71: RO | E71: NORTE | F71: Avaliador 2 | G71: 20 | H71: 15 | I71: 15 | J71: 10 | K71: 10 | L71: 10 | M71: 10 | N71: 10 | O71: 0 | P71: 0 | Q71: 3 | R71: 0 | S71: 0 | T71: 0 | U71: 103 | W71: =W70 -> 93 | X71: =X70 -> PRÉ-SELECIONADO
A72: PESSOA FÍSICA | B72: =HYPERLINK("https://mapas.cultura.gov.br/inscricao/1000976460","on-1000976460") -> on-1000976460 | C72: Maapá | D72: AP | E72: NORTE | F72: Avaliador 1 | G72: 20 | H72: 15 | I72: 15 | J72: 8 | K72: 10 | L72: 10 | M72: 10 | N72: 10 | O72: 0 | P72: 0 | Q72: 0 | R72: 0 | S72: 0 | T72: 0 | U72: 98 | W72: =AVERAGE(U72,U73) -> 92.5 | X72: PRÉ-SELECIONADO
A73: PESSOA FÍSICA | B73: =HYPERLINK("https://mapas.cultura.gov.br/inscricao/1000976460","on-1000976460") -> on-1000976460 | C73: Maapá | D73: AP | E73: NORTE | F73: Avaliador 2 | G73: 20 | H73: 15 | I73: 12 | J73: 8 | K73: 8 | L73: 8 | M73: 8 | N73: 8 | O73: 0 | P73: 0 | Q73: 0 | R73: 0 | S73: 0 | T73: 0 | U73: 87 | W73: =W72 -> 92.5 | X73: =X72 -> PRÉ-SELECIONADO
A74: PESSOA FÍSICA | B74: =HYPERLINK("https://mapas.cultura.gov.br/inscricao/691053361","on-691053361") -> on-691053361 | C74: Vilhena | D74: RO | E74: NORTE | F74: Avaliador 1 | G74: 15 | H74: 12 | I74: 12 | J74: 8 | K74: 5 | L74: 5 | M74: 5 | N74: 10 | O74: 0 | P74: 3 | Q74: 3 | R74: 0 | S74: 0 | T74: 0 | U74: 78 | W74: =AVERAGE(U74,U75) -> 92 | X74: PRÉ-SELECIONADO
A75: PESSOA FÍSICA | B75: =HYPERLINK("https://mapas.cultura.gov.br/inscricao/691053361","on-691053361") -> on-691053361 | C75: Vilhena | D75: RO | E75: NORTE | F75: Avaliador 2 | G75: 20 | H75: 15 | I75: 15 | J75: 10 | K75: 10 | L75: 10 | M75: 10 | N75: 10 | O75: 0 | P75: 3 | Q75: 3 | R75: 0 | S75: 0 | T75: 0 | U75: 106 | W75: =W74 -> 92 | X75: =X74 -> PRÉ-SELECIONADO
A76: PESSOA FÍSICA | B76: =HYPERLINK("https://mapas.cultura.gov.br/inscricao/382445052","on-382445052") -> on-382445052 | C76: Ananindeua | D76: PA | E76: NORTE | F76: Avaliador 1 | G76: 20 | H76: 15 | I76: 15 | J76: 10 | K76: 8 | L76: 5 | M76: 8 | N76: 8 | O76: 0 | P76: 3 | Q76: 3 | R76: 0 | S76: 0 | T76: 0 | U76: 95 | W76: =AVERAGE(U76,U77) -> 91.5 | X76: CLASSIFICADO
A77: PESSOA FÍSICA | B77: =HYPERLINK("https://mapas.cultura.gov.br/inscricao/382445052","on-382445052") -> on-382445052 | C77: Ananindeua | D77: PA | E77: NORTE | F77: Avaliador 2 | G77: 15 | H77: 12 | I77: 15 | J77: 8 | K77: 8 | L77: 8 | M77: 8 | N77: 8 | O77: 0 | P77: 3 | Q77: 3 | R77: 0 | S77: 0 | T77: 0 | U77: 88 | W77: =W76 -> 91.5 | X77: =X76 -> CLASSIFICADO
A78: PESSOA FÍSICA | B78: =HYPERLINK("https://mapas.cultura.gov.br/inscricao/1211151550","on-1211151550") -> on-1211151550 | C78: Belém | D78: PA | E78: NORTE | F78: Avaliador 1 | G78: 20 | H78: 15 | I78: 15 | J78: 10 | K78: 8 | L78: 8 | M78: 8 | N78: 8 | O78: 0 | P78: 3 | Q78: 3 | R78: 0 | S78: 0 | T78: 0 | U78: 98 | W78: =AVERAGE(U78,U79) -> 91.5 | X78: CLASSIFICADO
A79: PESSOA FÍSICA | B79: =HYPERLINK("https://mapas.cultura.gov.br/inscricao/1211151550","on-1211151550") -> on-1211151550 | C79: Belém | D79: PA | E79: NORTE | F79: Avaliador 2 | G79: 15 | H79: 12 | I79: 15 | J79: 8 | K79: 8 | L79: 8 | M79: 8 | N79: 5 | O79: 0 | P79: 3 | Q79: 3 | R79: 0 | S79: 0 | T79: 0 | U79: 85 | W79: =W78 -> 91.5 | X79: =X78 -> CLASSIFICADO
A80: PESSOA FÍSICA | B80: =HYPERLINK("https://mapas.cultura.gov.br/inscricao/765559780","on-765559780") -> on-765559780 | C80: belém | D80: PA | E80: NORTE | F80: Avaliador 1 | G80: 20 | H80: 15 | I80: 15 | J80: 10 | K80: 8 | L80: 10 | M80: 10 | N80: 10 | O80: 0 | P80: 0 | Q80: 3 | R80: 0 | S80: 3 | T80: 0 | U80: 104 | W80: =AVERAGE(U80,U81) -> 91.5 | X80: CLASSIFICADO
A81: PESSOA FÍSICA | B81: =HYPERLINK("https://mapas.cultura.gov.br/inscricao/765559780","on-765559780") -> on-765559780 | C81: belém | D81: PA | E81: NORTE | F81: Avaliador 2 | G81: 15 | H81: 12 | I81: 15 | J81: 5 | K81: 8 | L81: 5 | M81: 8 | N81: 5 | O81: 0 | P81: 0 | Q81: 3 | R81: 0 | S81: 3 | T81: 0 | U81: 79 | W81: =W80 -> 91.5 | X81: =X80 -> CLASSIFICADO
A82: PESSOA FÍSICA | B82: =HYPERLINK("https://mapas.cultura.gov.br/inscricao/880914620","on-880914620") -> on-880914620 | C82: Belém | D82: PA | E82: NORTE | F82: Avaliador 1 | G82: 20 | H82: 15 | I82: 15 | J82: 10 | K82: 10 | L82: 8 | M82: 8 | N82: 10 | O82: 0 | P82: 0 | Q82: 3 | R82: 0 | S82: 0 | T82: 0 | U82: 99 | W82: =AVERAGE(U82,U83) -> 91.5 | X82: CLASSIFICADO
A83: PESSOA FÍSICA | B83: =HYPERLINK("https://mapas.cultura.gov.br/inscricao/880914620","on-880914620") -> on-880914620 | C83: Belém | D83: PA | E83: NORTE | F83: Avaliador 2 | G83: 15 | H83: 12 | I83: 15 | J83: 5 | K83: 8 | L83: 8 | M83: 8 | N83: 10 | O83: 0 | P83: 0 | Q83: 3 | R83: 0 | S83: 0 | T83: 0 | U83: 84 | W83: =W82 -> 91.5 | X83: =X82 -> CLASSIFICADO
A84: PESSOA FÍSICA | B84: =HYPERLINK("https://mapas.cultura.gov.br/inscricao/839968924","on-839968924") -> on-839968924 | C84: Belém | D84: PA | E84: NORTE | F84: Avaliador 1 | G84: 10 | H84: 8 | I84: 12 | J84: 5 | K84: 8 | L84: 8 | M84: 8 | N84: 8 | O84: 0 | P84: 0 | Q84: 3 | R84: 3 | S84: 3 | T84: 0 | U84: 76 | W84: =AVERAGE(U84,U85) -> 91.5 | X84: CLASSIFICADO
A85: PESSOA FÍSICA | B85: =HYPERLINK("https://mapas.cultura.gov.br/inscricao/839968924","on-839968924") -> on-839968924 | C85: Belém | D85: PA | E85: NORTE | F85: Avaliador 2 | G85: 20 | H85: 15 | I85: 15 | J85: 10 | K85: 8 | L85: 10 | M85: 10 | N85: 10 | O85: 0 | P85: 0 | Q85: 3 | R85: 3 | S85: 3 | T85: 0 | U85: 107 | W85: =W84 -> 91.5 | X85: =X84 -> CLASSIFICADO
A86: PESSOA FÍSICA | B86: =HYPERLINK("https://mapas.cultura.gov.br/inscricao/2074514735","on-2074514735") -> on-2074514735 | C86: Belém | D86: PA | E86: NORTE | F86: Avaliador 1 | G86: 20 | H86: 12 | I86: 15 | J86: 10 | K86: 8 | L86: 8 | M86: 8 | N86: 8 | O86: 0 | P86: 3 | Q86: 0 | R86: 0 | S86: 3 | T86: 0 | U86: 95 | W86: =AVERAGE(U86,U87) -> 91 | X86: CLASSIFICADO
A87: PESSOA FÍSICA | B87: =HYPERLINK("https://mapas.cultura.gov.br/inscricao/2074514735","on-2074514735") -> on-2074514735 | C87: Belém | D87: PA | E87: NORTE | F87: Avaliador 2 | G87: 15 | H87: 12 | I87: 15 | J87: 10 | K87: 8 | L87: 8 | M87: 8 | N87: 5 | O87: 0 | P87: 3 | Q87: 0 | R87: 0 | S87: 3 | T87: 0 | U87: 87 | W87: =W86 -> 91 | X87: =X86 -> CLASSIFICADO
A88: PESSOA FÍSICA | B88: =HYPERLINK("https://mapas.cultura.gov.br/inscricao/1102110243","on-1102110243") -> on-1102110243 | C88: Manaus | D88: AM | E88: NORTE | F88: Avaliador 1 | G88: 15 | H88: 15 | I88: 15 | J88: 8 | K88: 8 | L88: 10 | M88: 10 | N88: 0 | O88: 0 | P88: 0 | Q88: 3 | R88: 0 | S88: 0 | T88: 0 | U88: 84 | W88: =AVERAGE(U88,U89) -> 91 | X88: CLASSIFICADO
A89: PESSOA FÍSICA | B89: =HYPERLINK("https://mapas.cultura.gov.br/inscricao/1102110243","on-1102110243") -> on-1102110243 | C89: Manaus | D89: AM | E89: NORTE | F89: Avaliador 2 | G89: 15 | H89: 15 | I89: 15 | J89: 10 | K89: 10 | L89: 10 | M89: 10 | N89: 10 | O89: 0 | P89: 0 | Q89: 3 | R89: 0 | S89: 0 | T89: 0 | U89: 98 | W89: =W88 -> 91 | X89: =X88 -> CLASSIFICADO
A90: PESSOA FÍSICA | B90: =HYPERLINK("https://mapas.cultura.gov.br/inscricao/918919922","on-918919922") -> on-918919922 | C90: Rio Branco | D90: AC | E90: NORTE | F90: Avaliador 1 | G90: 20 | H90: 15 | I90: 15 | J90: 8 | K90: 8 | L90: 10 | M90: 10 | N90: 10 | O90: 0 | P90: 0 | Q90: 3 | R90: 0 | S90: 0 | T90: 0 | U90: 99 | W90: =AVERAGE(U90,U91) -> 90.5 | X90: CLASSIFICADO
A91: PESSOA FÍSICA | B91: =HYPERLINK("https://mapas.cultura.gov.br/inscricao/918919922","on-918919922") -> on-918919922 | C91: Rio Branco | D91: AC | E91: NORTE | F91: Avaliador 2 | G91: 15 | H91: 12 | I91: 12 | J91: 8 | K91: 8 | L91: 8 | M91: 8 | N91: 8 | O91: 0 | P91: 0 | Q91: 3 | R91: 0 | S91: 0 | T91: 0 | U91: 82 | W91: =W90 -> 90.5 | X91: =X90 -> CLASSIFICADO
A92: PESSOA FÍSICA | B92: =HYPERLINK("https://mapas.cultura.gov.br/inscricao/636025754","on-636025754") -> on-636025754 | C92: Manaus | D92: AM | E92: NORTE | F92: Avaliador 1 | G92: 20 | H92: 15 | I92: 15 | J92: 8 | K92: 8 | L92: 10 | M92: 10 | N92: 10 | O92: 0 | P92: 0 | Q92: 3 | R92: 0 | S92: 0 | T92: 0 | U92: 99 | W92: =AVERAGE(U92,U93) -> 90.5 | X92: CLASSIFICADO
A93: PESSOA FÍSICA | B93: =HYPERLINK("https://mapas.cultura.gov.br/inscricao/636025754","on-636025754") -> on-636025754 | C93: Manaus | D93: AM | E93: NORTE | F93: Avaliador 2 | G93: 15 | H93: 12 | I93: 12 | J93: 8 | K93: 8 | L93: 8 | M93: 8 | N93: 8 | O93: 0 | P93: 0 | Q93: 3 | R93: 0 | S93: 0 | T93: 0 | U93: 82 | W93: =W92 -> 90.5 | X93: =X92 -> CLASSIFICADO
A94: PESSOA FÍSICA | B94: =HYPERLINK("https://mapas.cultura.gov.br/inscricao/311788714","on-311788714") -> on-311788714 | C94: Manaus | D94: AM | E94: NORTE | F94: Avaliador 1 | G94: 20 | H94: 15 | I94: 15 | J94: 5 | K94: 8 | L94: 8 | M94: 8 | N94: 8 | O94: 0 | P94: 0 | Q94: 3 | R94: 0 | S94: 0 | T94: 0 | U94: 90 | W94: =AVERAGE(U94,U95) -> 90 | X94: CLASSIFICADO
A95: PESSOA FÍSICA | B95: =HYPERLINK("https://mapas.cultura.gov.br/inscricao/311788714","on-311788714") -> on-311788714 | C95: Manaus | D95: AM | E95: NORTE | F95: Avaliador 2 | G95: 20 | H95: 15 | I95: 15 | J95: 5 | K95: 8 | L95: 8 | M95: 8 | N95: 8 | O95: 0 | P95: 0 | Q95: 3 | R95: 0 | S95: 0 | T95: 0 | U95: 90 | W95: =W94 -> 90 | X95: =X94 -> CLASSIFICADO
A96: PESSOA FÍSICA | B96: =HYPERLINK("https://mapas.cultura.gov.br/inscricao/1558114746","on-1558114746") -> on-1558114746 | C96: Castanhal | D96: PA | E96: NORTE | F96: Avaliador 1 | G96: 20 | H96: 15 | I96: 15 | J96: 10 | K96: 8 | L96: 8 | M96: 8 | N96: 8 | O96: 0 | P96: 0 | Q96: 3 | R96: 3 | S96: 0 | T96: 0 | U96: 98 | W96: =AVERAGE(U96,U97) -> 90 | X96: CLASSIFICADO
A97: PESSOA FÍSICA | B97: =HYPERLINK("https://mapas.cultura.gov.br/inscricao/1558114746","on-1558114746") -> on-1558114746 | C97: Castanhal | D97: PA | E97: NORTE | F97: Avaliador 2 | G97: 15 | H97: 12 | I97: 15 | J97: 5 | K97: 8 | L97: 8 | M97: 8 | N97: 5 | O97: 0 | P97: 0 | Q97: 3 | R97: 3 | S97: 0 | T97: 0 | U97: 82 | W97: =W96 -> 90 | X97: =X96 -> CLASSIFICADO
A98: PESSOA FÍSICA | B98: =HYPERLINK("https://mapas.cultura.gov.br/inscricao/893236987","on-893236987") -> on-893236987 | C98: Belém | D98: PA | E98: NORTE | F98: Avaliador 1 | G98: 20 | H98: 15 | I98: 15 | J98: 8 | K98: 8 | L98: 8 | M98: 8 | N98: 10 | O98: 0 | P98: 0 | Q98: 3 | R98: 0 | S98: 0 | T98: 0 | U98: =SUM(G98:T98) -> 95 | W98: =AVERAGE(U98,U99) -> 90 | X98: CLASSIFICADO
A99: PESSOA FÍSICA | B99: =HYPERLINK("https://mapas.cultura.gov.br/inscricao/893236987","on-893236987") -> on-893236987 | C99: Belém | D99: PA | E99: NORTE | F99: Avaliador 2 | G99: 15 | H99: 12 | I99: 15 | J99: 8 | K99: 8 | L99: 8 | M99: 8 | N99: 8 | O99: 0 | P99: 0 | Q99: 3 | R99: 0 | S99: 0 | T99: 0 | U99: 85 | W99: =W98 -> 90 | X99: =X98 -> CLASSIFICADO
A100: PESSOA FÍSICA | B100: =HYPERLINK("https://mapas.cultura.gov.br/inscricao/1728698422","on-1728698422") -> on-1728698422 | C100: Manaus | D100: AM | E100: NORTE | F100: Avaliador 1 | G100: 20 | H100: 15 | I100: 12 | J100: 8 | K100: 10 | L100: 10 | M100: 10 | N100: 10 | O100: 0 | P100: 3 | Q100: 0 | R100: 0 | S100: 0 | T100: 0 | U100: 98 | W100: =AVERAGE(U100,U101) -> 90 | X100: CLASSIFICADO
A101: PESSOA FÍSICA | B101: =HYPERLINK("https://mapas.cultura.gov.br/inscricao/1728698422","on-1728698422") -> on-1728698422 | C101: Manaus | D101: AM | E101: NORTE | F101: Avaliador 2 | G101: 15 | H101: 12 | I101: 12 | J101: 8 | K101: 8 | L101: 8 | M101: 8 | N101: 8 | O101: 0 | P101: 3 | Q101: 0 | R101: 0 | S101: 0 | T101: 0 | U101: 82 | W101: =W100 -> 90 | X101: =X100 -> CLASSIFICADO
A102: PESSOA FÍSICA | B102: =HYPERLINK("https://mapas.cultura.gov.br/inscricao/1692925043","on-1692925043") -> on-1692925043 | C102: Manaus | D102: AM | E102: NORTE | F102: Avaliador 1 | G102: 15 | H102: 15 | I102: 15 | J102: 8 | K102: 8 | L102: 10 | M102: 8 | N102: 5 | O102: 0 | P102: 0 | Q102: 0 | R102: 0 | S102: 0 | T102: 0 | U102: 84 | W102: =AVERAGE(U102,U103) -> 90 | X102: CLASSIFICADO
A103: PESSOA FÍSICA | B103: =HYPERLINK("https://mapas.cultura.gov.br/inscricao/1692925043","on-1692925043") -> on-1692925043 | C103: Manaus | D103: AM | E103: NORTE | F103: Avaliador 2 | G103: 20 | H103: 15 | I103: 15 | J103: 8 | K103: 10 | L103: 10 | M103: 10 | N103: 8 | O103: 0 | P103: 0 | Q103: 0 | R103: 0 | S103: 0 | T103: 0 | U103: 96 | W103: =W102 -> 90 | X103: =X102 -> CLASSIFICADO
A104: PESSOA FÍSICA | B104: =HYPERLINK("https://mapas.cultura.gov.br/inscricao/413595098","on-413595098") -> on-413595098 | C104: Manaus | D104: AM | E104: NORTE | F104: Avaliador 1 | G104: 20 | H104: 15 | I104: 15 | J104: 10 | K104: 8 | L104: 10 | M104: 8 | N104: 8 | O104: 0 | P104: 3 | Q104: 0 | R104: 0 | S104: 0 | T104: 0 | U104: 97 | W104: =AVERAGE(U104,U105) -> 89.5 | X104: CLASSIFICADO
A105: PESSOA FÍSICA | B105: =HYPERLINK("https://mapas.cultura.gov.br/inscricao/413595098","on-413595098") -> on-413595098 | C105: Manaus | D105: AM | E105: NORTE | F105: Avaliador 2 | G105: 15 | H105: 12 | I105: 12 | J105: 8 | K105: 8 | L105: 8 | M105: 8 | N105: 8 | O105: 0 | P105: 3 | Q105: 0 | R105: 0 | S105: 0 | T105: 0 | U105: 82 | W105: =W104 -> 89.5 | X105: =X104 -> CLASSIFICADO
A106: PESSOA FÍSICA | B106: =HYPERLINK("https://mapas.cultura.gov.br/inscricao/2069677103","on-2069677103") -> on-2069677103 | C106: Manaus | D106: AM | E106: NORTE | F106: Avaliador 1 | G106: 15 | H106: 15 | I106: 15 | J106: 8 | K106: 10 | L106: 10 | M106: 10 | N106: 10 | O106: 0 | P106: 0 | Q106: 3 | R106: 0 | S106: 0 | T106: 0 | U106: 96 | W106: =AVERAGE(U106,U107) -> 89 | X106: CLASSIFICADO
A107: PESSOA FÍSICA | B107: =HYPERLINK("https://mapas.cultura.gov.br/inscricao/2069677103","on-2069677103") -> on-2069677103 | C107: Manaus | D107: AM | E107: NORTE | F107: Avaliador 2 | G107: 15 | H107: 12 | I107: 12 | J107: 8 | K107: 8 | L107: 8 | M107: 8 | N107: 8 | O107: 0 | P107: 0 | Q107: 3 | R107: 0 | S107: 0 | T107: 0 | U107: 82 | W107: =W106 -> 89 | X107: =X106 -> CLASSIFICADO
A108: PESSOA FÍSICA | B108: =HYPERLINK("https://mapas.cultura.gov.br/inscricao/931045227","on-931045227") -> on-931045227 | C108: Porto Velho | D108: RO | E108: NORTE | F108: Avaliador 1 | G108: 15 | H108: 12 | I108: 12 | J108: 5 | K108: 5 | L108: 5 | M108: 10 | N108: 10 | O108: 0 | P108: 0 | Q108: 3 | R108: 0 | S108: 0 | T108: 0 | U108: 77 | W108: =AVERAGE(U108,U109) -> 89 | X108: CLASSIFICADO
A109: PESSOA FÍSICA | B109: =HYPERLINK("https://mapas.cultura.gov.br/inscricao/931045227","on-931045227") -> on-931045227 | C109: Porto Velho | D109: RO | E109: NORTE | F109: Avaliador 2 | G109: 20 | H109: 15 | I109: 15 | J109: 8 | K109: 10 | L109: 10 | M109: 10 | N109: 10 | O109: 0 | P109: 0 | Q109: 3 | R109: 0 | S109: 0 | T109: 0 | U109: 101 | W109: =W108 -> 89 | X109: =X108 -> CLASSIFICADO
A110: PESSOA FÍSICA | B110: =HYPERLINK("https://mapas.cultura.gov.br/inscricao/824507974","on-824507974") -> on-824507974 | C110: Manaus | D110: AM | E110: NORTE | F110: Avaliador 1 | G110: 20 | H110: 15 | I110: 15 | J110: 8 | K110: 10 | L110: 10 | M110: 10 | N110: 10 | O110: 0 | P110: 0 | Q110: 0 | R110: 0 | S110: 0 | T110: 0 | U110: 98 | W110: =AVERAGE(U110,U111) -> 88.5 | X110: CLASSIFICADO
A111: PESSOA FÍSICA | B111: =HYPERLINK("https://mapas.cultura.gov.br/inscricao/824507974","on-824507974") -> on-824507974 | C111: Manaus | D111: AM | E111: NORTE | F111: Avaliador 2 | G111: 15 | H111: 12 | I111: 12 | J111: 8 | K111: 8 | L111: 8 | M111: 8 | N111: 8 | O111: 0 | P111: 0 | Q111: 0 | R111: 0 | S111: 0 | T111: 0 | U111: 79 | W111: =W110 -> 88.5 | X111: =X110 -> CLASSIFICADO
A112: PESSOA FÍSICA | B112: =HYPERLINK("https://mapas.cultura.gov.br/inscricao/1544862357","on-1544862357") -> on-1544862357 | C112: Canaã dos Carajás | D112: PA | E112: NORTE | F112: Avaliador 1 | G112: 15 | H112: 8 | I112: 12 | J112: 10 | K112: 8 | L112: 8 | M112: 8 | N112: 8 | O112: 0 | P112: 0 | Q112: 3 | R112: 0 | S112: 0 | T112: 0 | U112: 80 | W112: =AVERAGE(U112,U113) -> 88.5 | X112: CLASSIFICADO
A113: PESSOA FÍSICA | B113: =HYPERLINK("https://mapas.cultura.gov.br/inscricao/1544862357","on-1544862357") -> on-1544862357 | C113: Canaã dos Carajás | D113: PA | E113: NORTE | F113: Avaliador 2 | G113: 20 | H113: 15 | I113: 15 | J113: 8 | K113: 10 | L113: 8 | M113: 10 | N113: 8 | O113: 0 | P113: 0 | Q113: 3 | R113: 0 | S113: 0 | T113: 0 | U113: 97 | W113: =W112 -> 88.5 | X113: =X112 -> CLASSIFICADO
A114: PESSOA FÍSICA | B114: =HYPERLINK("https://mapas.cultura.gov.br/inscricao/422100043","on-422100043") -> on-422100043 | C114: Belém | D114: PA | E114: NORTE | F114: Avaliador 1 | G114: 20 | H114: 15 | I114: 15 | J114: 10 | K114: 10 | L114: 10 | M114: 10 | N114: 10 | O114: 0 | P114: 0 | Q114: 0 | R114: 0 | S114: 0 | T114: 0 | U114: 100 | W114: =AVERAGE(U114,U115) -> 88 | X114: CLASSIFICADO
A115: PESSOA FÍSICA | B115: =HYPERLINK("https://mapas.cultura.gov.br/inscricao/422100043","on-422100043") -> on-422100043 | C115: Belém | D115: PA | E115: NORTE | F115: Avaliador 2 | G115: 15 | H115: 12 | I115: 12 | J115: 5 | K115: 8 | L115: 8 | M115: 8 | N115: 8 | O115: 0 | P115: 0 | Q115: 0 | R115: 0 | S115: 0 | T115: 0 | U115: 76 | W115: =W114 -> 88 | X115: =X114 -> CLASSIFICADO
A116: PESSOA FÍSICA | B116: =HYPERLINK("https://mapas.cultura.gov.br/inscricao/1626779990","on-1626779990") -> on-1626779990 | C116: Manaus | D116: AM | E116: NORTE | F116: Avaliador 1 | G116: 20 | H116: 15 | I116: 15 | J116: 8 | K116: 10 | L116: 10 | M116: 10 | N116: 8 | O116: 0 | P116: 0 | Q116: 0 | R116: 0 | S116: 0 | T116: 0 | U116: 96 | W116: =AVERAGE(U116,U117) -> 87.5 | X116: CLASSIFICADO
A117: PESSOA FÍSICA | B117: =HYPERLINK("https://mapas.cultura.gov.br/inscricao/1626779990","on-1626779990") -> on-1626779990 | C117: Manaus | D117: AM | E117: NORTE | F117: Avaliador 2 | G117: 15 | H117: 12 | I117: 12 | J117: 8 | K117: 8 | L117: 8 | M117: 8 | N117: 8 | O117: 0 | P117: 0 | Q117: 0 | R117: 0 | S117: 0 | T117: 0 | U117: 79 | W117: =W116 -> 87.5 | X117: =X116 -> CLASSIFICADO
A118: PESSOA FÍSICA | B118: =HYPERLINK("https://mapas.cultura.gov.br/inscricao/1241493434","on-1241493434") -> on-1241493434 | C118: Macapá | D118: AP | E118: NORTE | F118: Avaliador 1 | G118: 20 | H118: 15 | I118: 15 | J118: 8 | K118: 10 | L118: 10 | M118: 8 | N118: 10 | O118: 0 | P118: 0 | Q118: 0 | R118: 0 | S118: 0 | T118: 0 | U118: 96 | W118: =AVERAGE(U118,U119) -> 87.5 | X118: CLASSIFICADO
A119: PESSOA FÍSICA | B119: =HYPERLINK("https://mapas.cultura.gov.br/inscricao/1241493434","on-1241493434") -> on-1241493434 | C119: Macapá | D119: AP | E119: NORTE | F119: Avaliador 2 | G119: 15 | H119: 12 | I119: 12 | J119: 8 | K119: 8 | L119: 8 | M119: 8 | N119: 8 | O119: 0 | P119: 0 | Q119: 0 | R119: 0 | S119: 0 | T119: 0 | U119: 79 | W119: =W118 -> 87.5 | X119: =X118 -> CLASSIFICADO
A120: PESSOA FÍSICA | B120: =HYPERLINK("https://mapas.cultura.gov.br/inscricao/1604946085","on-1604946085") -> on-1604946085 | C120: Belém | D120: PA | E120: NORTE | F120: Avaliador 1 | G120: 20 | H120: 15 | I120: 15 | J120: 8 | K120: 8 | L120: 8 | M120: 8 | N120: 8 | O120: 0 | P120: 3 | Q120: 3 | R120: 0 | S120: 3 | T120: 0 | U120: 99 | W120: =AVERAGE(U120,U121) -> 87.5 | X120: CLASSIFICADO
A121: PESSOA FÍSICA | B121: =HYPERLINK("https://mapas.cultura.gov.br/inscricao/1604946085","on-1604946085") -> on-1604946085 | C121: Belém | D121: PA | E121: NORTE | F121: Avaliador 2 | G121: 10 | H121: 8 | I121: 15 | J121: 8 | K121: 5 | L121: 8 | M121: 5 | N121: 8 | O121: 0 | P121: 3 | Q121: 3 | R121: 0 | S121: 3 | T121: 0 | U121: 76 | W121: =W120 -> 87.5 | X121: =X120 -> CLASSIFICADO
A122: PESSOA FÍSICA | B122: =HYPERLINK("https://mapas.cultura.gov.br/inscricao/1188996715","on-1188996715") -> on-1188996715 | C122: Manaus | D122: AM | E122: NORTE | F122: Avaliador 1 | G122: 15 | H122: 15 | I122: 15 | J122: 8 | K122: 10 | L122: 10 | M122: 8 | N122: 8 | O122: 0 | P122: 0 | Q122: 3 | R122: 0 | S122: 0 | T122: 0 | U122: 92 | W122: =AVERAGE(U122,U123) -> 87 | X122: CLASSIFICADO
A123: PESSOA FÍSICA | B123: =HYPERLINK("https://mapas.cultura.gov.br/inscricao/1188996715","on-1188996715") -> on-1188996715 | C123: Manaus | D123: AM | E123: NORTE | F123: Avaliador 2 | G123: 15 | H123: 12 | I123: 12 | J123: 8 | K123: 8 | L123: 8 | M123: 8 | N123: 8 | O123: 0 | P123: 0 | Q123: 3 | R123: 0 | S123: 0 | T123: 0 | U123: 82 | W123: =W122 -> 87 | X123: =X122 -> CLASSIFICADO
A124: PESSOA FÍSICA | B124: =HYPERLINK("https://mapas.cultura.gov.br/inscricao/1884481279","on-1884481279") -> on-1884481279 | C124: Macapá | D124: AP | E124: NORTE | F124: Avaliador 1 | G124: 20 | H124: 15 | I124: 15 | J124: 8 | K124: 10 | L124: 10 | M124: 8 | N124: 8 | O124: 0 | P124: 0 | Q124: 0 | R124: 0 | S124: 0 | T124: 0 | U124: 94 | W124: =AVERAGE(U124,U125) -> 86.5 | X124: CLASSIFICADO
A125: PESSOA FÍSICA | B125: =HYPERLINK("https://mapas.cultura.gov.br/inscricao/1884481279","on-1884481279") -> on-1884481279 | C125: Macapá | D125: AP | E125: NORTE | F125: Avaliador 2 | G125: 15 | H125: 12 | I125: 12 | J125: 8 | K125: 8 | L125: 8 | M125: 8 | N125: 8 | O125: 0 | P125: 0 | Q125: 0 | R125: 0 | S125: 0 | T125: 0 | U125: 79 | W125: =W124 -> 86.5 | X125: =X124 -> CLASSIFICADO
A126: PESSOA FÍSICA | B126: =HYPERLINK("https://mapas.cultura.gov.br/inscricao/2109774199","on-2109774199") -> on-2109774199 | C126: Manaus | D126: AM | E126: NORTE | F126: Avaliador 1 | G126: 15 | H126: 12 | I126: 15 | J126: 8 | K126: 10 | L126: 10 | M126: 10 | N126: 8 | O126: 0 | P126: 0 | Q126: 3 | R126: 0 | S126: 0 | T126: 0 | U126: 91 | W126: =AVERAGE(U126,U127) -> 86.5 | X126: CLASSIFICADO
A127: PESSOA FÍSICA | B127: =HYPERLINK("https://mapas.cultura.gov.br/inscricao/2109774199","on-2109774199") -> on-2109774199 | C127: Manaus | D127: AM | E127: NORTE | F127: Avaliador 2 | G127: 15 | H127: 12 | I127: 12 | J127: 8 | K127: 8 | L127: 8 | M127: 8 | N127: 8 | O127: 0 | P127: 0 | Q127: 3 | R127: 0 | S127: 0 | T127: 0 | U127: 82 | W127: =W126 -> 86.5 | X127: =X126 -> CLASSIFICADO
A128: PESSOA FÍSICA | B128: =HYPERLINK("https://mapas.cultura.gov.br/inscricao/1633061592","on-1633061592") -> on-1633061592 | C128: Macapá | D128: AP | E128: NORTE | F128: Avaliador 1 | G128: 20 | H128: 15 | I128: 15 | J128: 8 | K128: 8 | L128: 10 | M128: 10 | N128: 8 | O128: 0 | P128: 0 | Q128: 0 | R128: 0 | S128: 0 | T128: 0 | U128: 94 | W128: =AVERAGE(U128,U129) -> 86.5 | X128: CLASSIFICADO
A129: PESSOA FÍSICA | B129: =HYPERLINK("https://mapas.cultura.gov.br/inscricao/1633061592","on-1633061592") -> on-1633061592 | C129: Macapá | D129: AP | E129: NORTE | F129: Avaliador 2 | G129: 15 | H129: 12 | I129: 12 | J129: 8 | K129: 8 | L129: 8 | M129: 8 | N129: 8 | O129: 0 | P129: 0 | Q129: 0 | R129: 0 | S129: 0 | T129: 0 | U129: 79 | W129: =W128 -> 86.5 | X129: =X128 -> CLASSIFICADO
A130: PESSOA FÍSICA | B130: =HYPERLINK("https://mapas.cultura.gov.br/inscricao/193459848","on-193459848") -> on-193459848 | C130: Macapá | D130: AP | E130: NORTE | F130: Avaliador 1 | G130: 10 | H130: 15 | I130: 15 | J130: 8 | K130: 8 | L130: 10 | M130: 8 | N130: 8 | O130: 0 | P130: 3 | Q130: 3 | R130: 0 | S130: 0 | T130: 0 | U130: =SUM(G130:T130) -> 88 | W130: =AVERAGE(U130,U131) -> 86.5 | X130: CLASSIFICADO
A131: PESSOA FÍSICA | B131: =HYPERLINK("https://mapas.cultura.gov.br/inscricao/193459848","on-193459848") -> on-193459848 | C131: Macapá | D131: AP | E131: NORTE | F131: Avaliador 2 | G131: 15 | H131: 12 | I131: 12 | J131: 8 | K131: 8 | L131: 8 | M131: 8 | N131: 8 | O131: 0 | P131: 3 | Q131: 3 | R131: 0 | S131: 0 | T131: 0 | U131: 85 | W131: =W130 -> 86.5 | X131: =X130 -> CLASSIFICADO
A132: PESSOA FÍSICA | B132: =HYPERLINK("https://mapas.cultura.gov.br/inscricao/650020442","on-650020442") -> on-650020442 | C132: Rio Branco | D132: AC | E132: NORTE | F132: Avaliador 1 | G132: 15 | H132: 15 | I132: 15 | J132: 10 | K132: 8 | L132: 10 | M132: 10 | N132: 8 | O132: 0 | P132: 0 | Q132: 0 | R132: 0 | S132: 0 | T132: 0 | U132: 91 | W132: =AVERAGE(U132,U133) -> 85 | X132: CLASSIFICADO
A133: PESSOA FÍSICA | B133: =HYPERLINK("https://mapas.cultura.gov.br/inscricao/650020442","on-650020442") -> on-650020442 | C133: Rio Branco | D133: AC | E133: NORTE | F133: Avaliador 2 | G133: 15 | H133: 12 | I133: 12 | J133: 8 | K133: 8 | L133: 8 | M133: 8 | N133: 8 | O133: 0 | P133: 0 | Q133: 0 | R133: 0 | S133: 0 | T133: 0 | U133: 79 | W133: =W132 -> 85 | X133: =X132 -> CLASSIFICADO
A134: PESSOA FÍSICA | B134: =HYPERLINK("https://mapas.cultura.gov.br/inscricao/1739324060","on-1739324060") -> on-1739324060 | C134: Macapá | D134: AP | E134: NORTE | F134: Avaliador 1 | G134: 15 | H134: 12 | I134: 12 | J134: 8 | K134: 8 | L134: 8 | M134: 8 | N134: 8 | O134: 0 | P134: 3 | Q134: 3 | R134: 0 | S134: 0 | T134: 0 | U134: 85 | W134: =AVERAGE(U134,U135) -> 85 | X134: CLASSIFICADO
A135: PESSOA FÍSICA | B135: =HYPERLINK("https://mapas.cultura.gov.br/inscricao/1739324060","on-1739324060") -> on-1739324060 | C135: Macapá | D135: AP | E135: NORTE | F135: Avaliador 2 | G135: 15 | H135: 12 | I135: 12 | J135: 8 | K135: 8 | L135: 8 | M135: 8 | N135: 8 | O135: 0 | P135: 3 | Q135: 3 | R135: 0 | S135: 0 | T135: 0 | U135: 85 | W135: =W134 -> 85 | X135: =X134 -> CLASSIFICADO
A136: PESSOA FÍSICA | B136: =HYPERLINK("https://mapas.cultura.gov.br/inscricao/382510927","on-382510927") -> on-382510927 | C136: Macapa | D136: AP | E136: NORTE | F136: Avaliador 1 | G136: 15 | H136: 12 | I136: 12 | J136: 8 | K136: 8 | L136: 8 | M136: 8 | N136: 8 | O136: 0 | P136: 0 | Q136: 3 | R136: 3 | S136: 0 | T136: 0 | U136: 85 | W136: =AVERAGE(U136,U137) -> 85 | X136: CLASSIFICADO
A137: PESSOA FÍSICA | B137: =HYPERLINK("https://mapas.cultura.gov.br/inscricao/382510927","on-382510927") -> on-382510927 | C137: Macapa | D137: AP | E137: NORTE | F137: Avaliador 2 | G137: 15 | H137: 12 | I137: 12 | J137: 8 | K137: 8 | L137: 8 | M137: 8 | N137: 8 | O137: 0 | P137: 0 | Q137: 3 | R137: 3 | S137: 0 | T137: 0 | U137: 85 | W137: =W136 -> 85 | X137: =X136 -> CLASSIFICADO
A138: PESSOA FÍSICA | B138: =HYPERLINK("https://mapas.cultura.gov.br/inscricao/1715508148","on-1715508148") -> on-1715508148 | C138: Macapá | D138: AP | E138: NORTE | F138: Avaliador 1 | G138: 15 | H138: 15 | I138: 12 | J138: 5 | K138: 10 | L138: 10 | M138: 8 | N138: 10 | O138: 0 | P138: 0 | Q138: 3 | R138: 0 | S138: 0 | T138: 0 | U138: 88 | W138: =AVERAGE(U138,U139) -> 85 | X138: CLASSIFICADO
A139: PESSOA FÍSICA | B139: =HYPERLINK("https://mapas.cultura.gov.br/inscricao/1715508148","on-1715508148") -> on-1715508148 | C139: Macapá | D139: AP | E139: NORTE | F139: Avaliador 2 | G139: 15 | H139: 12 | I139: 12 | J139: 8 | K139: 8 | L139: 8 | M139: 8 | N139: 8 | O139: 0 | P139: 0 | Q139: 3 | R139: 0 | S139: 0 | T139: 0 | U139: 82 | W139: =W138 -> 85 | X139: =X138 -> CLASSIFICADO
A140: PESSOA FÍSICA | B140: =HYPERLINK("https://mapas.cultura.gov.br/inscricao/2109390490","on-2109390490") -> on-2109390490 | C140: Epitaciolândia | D140: AC | E140: NORTE | F140: Avaliador 1 | G140: 15 | H140: 12 | I140: 15 | J140: 8 | K140: 8 | L140: 10 | M140: 8 | N140: 8 | O140: 0 | P140: 0 | Q140: 3 | R140: 0 | S140: 0 | T140: 0 | U140: 87 | W140: =AVERAGE(U140,U141) -> 84.5 | X140: CLASSIFICADO
A141: PESSOA FÍSICA | B141: =HYPERLINK("https://mapas.cultura.gov.br/inscricao/2109390490","on-2109390490") -> on-2109390490 | C141: Epitaciolândia | D141: AC | E141: NORTE | F141: Avaliador 2 | G141: 15 | H141: 12 | I141: 12 | J141: 8 | K141: 8 | L141: 8 | M141: 8 | N141: 8 | O141: 0 | P141: 0 | Q141: 3 | R141: 0 | S141: 0 | T141: 0 | U141: 82 | W141: =W140 -> 84.5 | X141: =X140 -> CLASSIFICADO
A142: PESSOA FÍSICA | B142: =HYPERLINK("https://mapas.cultura.gov.br/inscricao/1439548909","on-1439548909") -> on-1439548909 | C142: Rio Branco | D142: AC | E142: NORTE | F142: Avaliador 1 | G142: 10 | H142: 8 | I142: 15 | J142: 10 | K142: 10 | L142: 10 | M142: 10 | N142: 5 | O142: 0 | P142: 3 | Q142: 3 | R142: 0 | S142: 0 | T142: 0 | U142: 84 | W142: =AVERAGE(U142,U143) -> 84.5 | X142: CLASSIFICADO
A143: PESSOA FÍSICA | B143: =HYPERLINK("https://mapas.cultura.gov.br/inscricao/1439548909","on-1439548909") -> on-1439548909 | C143: Rio Branco | D143: AC | E143: NORTE | F143: Avaliador 2 | G143: 15 | H143: 12 | I143: 12 | J143: 8 | K143: 8 | L143: 8 | M143: 8 | N143: 8 | O143: 0 | P143: 3 | Q143: 3 | R143: 0 | S143: 0 | T143: 0 | U143: 85 | W143: =W142 -> 84.5 | X143: =X142 -> CLASSIFICADO
A144: PESSOA FÍSICA | B144: =HYPERLINK("https://mapas.cultura.gov.br/inscricao/1342172916","on-1342172916") -> on-1342172916 | C144: Rio Branco | D144: AC | E144: NORTE | F144: Avaliador 1 | G144: 20 | H144: 12 | I144: 15 | J144: 8 | K144: 8 | L144: 10 | M144: 8 | N144: 8 | O144: 0 | P144: 0 | Q144: 0 | R144: 0 | S144: 0 | T144: 0 | U144: 89 | W144: =AVERAGE(U144,U145) -> 84.5 | X144: CLASSIFICADO
A145: PESSOA FÍSICA | B145: =HYPERLINK("https://mapas.cultura.gov.br/inscricao/1342172916","on-1342172916") -> on-1342172916 | C145: Rio Branco | D145: AC | E145: NORTE | F145: Avaliador 2 | G145: 10 | H145: 8 | I145: 8 | J145: 5 | K145: 5 | L145: 5 | M145: 5 | N145: 5 | O145: 0 | P145: 0 | Q145: 0 | R145: 0 | S145: 0 | T145: 0 | U145: 80 | W145: =W144 -> 84.5 | X145: =X144 -> CLASSIFICADO
A146: PESSOA FÍSICA | B146: =HYPERLINK("https://mapas.cultura.gov.br/inscricao/1532861391","on-1532861391") -> on-1532861391 | C146: Macapá | D146: AP | E146: NORTE | F146: Avaliador 1 | G146: 15 | H146: 15 | I146: 15 | J146: 8 | K146: 8 | L146: 10 | M146: 8 | N146: 8 | O146: 0 | P146: 0 | Q146: 0 | R146: 0 | S146: 0 | T146: 0 | U146: =SUM(G146:T146) -> 87 | W146: =AVERAGE(U146,U147) -> 84.5 | X146: CLASSIFICADO
A147: PESSOA FÍSICA | B147: =HYPERLINK("https://mapas.cultura.gov.br/inscricao/1532861391","on-1532861391") -> on-1532861391 | C147: Macapá | D147: AP | E147: NORTE | F147: Avaliador 2 | G147: 15 | H147: 15 | I147: 12 | J147: 8 | K147: 8 | L147: 8 | M147: 8 | N147: 8 | O147: 0 | P147: 0 | Q147: 0 | R147: 0 | S147: 0 | T147: 0 | U147: 82 | W147: =W146 -> 84.5 | X147: =X146 -> CLASSIFICADO
A148: PESSOA FÍSICA | B148: =HYPERLINK("https://mapas.cultura.gov.br/inscricao/1198371984","on-1198371984") -> on-1198371984 | C148: Macapá | D148: AP | E148: NORTE | F148: Avaliador 1 | G148: 15 | H148: 12 | I148: 15 | J148: 8 | K148: 8 | L148: 10 | M148: 5 | N148: 10 | O148: 0 | P148: 0 | Q148: 3 | R148: 0 | S148: 0 | T148: 0 | U148: 86 | W148: =AVERAGE(U148,U149) -> 84 | X148: CLASSIFICADO
A149: PESSOA FÍSICA | B149: =HYPERLINK("https://mapas.cultura.gov.br/inscricao/1198371984","on-1198371984") -> on-1198371984 | C149: Macapá | D149: AP | E149: NORTE | F149: Avaliador 2 | G149: 15 | H149: 12 | I149: 12 | J149: 8 | K149: 8 | L149: 8 | M149: 8 | N149: 8 | O149: 0 | P149: 0 | Q149: 3 | R149: 0 | S149: 0 | T149: 0 | U149: 82 | W149: =W148 -> 84 | X149: =X148 -> CLASSIFICADO
A150: PESSOA FÍSICA | B150: =HYPERLINK("https://mapas.cultura.gov.br/inscricao/331321379","on-331321379") -> on-331321379 | C150: Marabá | D150: PA | E150: NORTE | F150: Avaliador 1 | G150: 15 | H150: 8 | I150: 8 | J150: 8 | K150: 8 | L150: 10 | M150: 8 | N150: 8 | O150: 0 | P150: 0 | Q150: 3 | R150: 0 | S150: 0 | T150: 0 | U150: 76 | W150: =AVERAGE(U150,U151) -> 84 | X150: CLASSIFICADO
A151: PESSOA FÍSICA | B151: =HYPERLINK("https://mapas.cultura.gov.br/inscricao/331321379","on-331321379") -> on-331321379 | C151: Marabá | D151: PA | E151: NORTE | F151: Avaliador 2 | G151: 20 | H151: 15 | I151: 15 | J151: 10 | K151: 8 | L151: 8 | M151: 8 | N151: 5 | O151: 0 | P151: 0 | Q151: 3 | R151: 0 | S151: 0 | T151: 0 | U151: 92 | W151: =W150 -> 84 | X151: =X150 -> CLASSIFICADO
A152: PESSOA FÍSICA | B152: =HYPERLINK("https://mapas.cultura.gov.br/inscricao/1622928680","on-1622928680") -> on-1622928680 | C152: Belém | D152: PA | E152: NORTE | F152: Avaliador 1 | G152: 10 | H152: 8 | I152: 8 | J152: 5 | K152: 5 | L152: 10 | M152: 10 | N152: 10 | O152: 0 | P152: 0 | Q152: 3 | R152: 0 | S152: 3 | T152: 0 | U152: 72 | W152: =AVERAGE(U152,U153) -> 84 | X152: CLASSIFICADO
A153: PESSOA FÍSICA | B153: =HYPERLINK("https://mapas.cultura.gov.br/inscricao/1622928680","on-1622928680") -> on-1622928680 | C153: Belém | D153: PA | E153: NORTE | F153: Avaliador 2 | G153: 15 | H153: 12 | I153: 15 | J153: 10 | K153: 10 | L153: 10 | M153: 10 | N153: 8 | O153: 0 | P153: 0 | Q153: 3 | R153: 0 | S153: 3 | T153: 0 | U153: 96 | W153: =W152 -> 84 | X153: =X152 -> CLASSIFICADO
A154: PESSOA FÍSICA | B154: =HYPERLINK("https://mapas.cultura.gov.br/inscricao/598272307","on-598272307") -> on-598272307 | C154: Manaus | D154: AM | E154: NORTE | F154: Avaliador 1 | G154: 10 | H154: 12 | I154: 12 | J154: 8 | K154: 8 | L154: 8 | M154: 10 | N154: 8 | O154: 0 | P154: 3 | Q154: 3 | R154: 0 | S154: 0 | T154: 0 | U154: 82 | W154: =AVERAGE(U154,U155) -> 83.5 | X154: CLASSIFICADO
A155: PESSOA FÍSICA | B155: =HYPERLINK("https://mapas.cultura.gov.br/inscricao/598272307","on-598272307") -> on-598272307 | C155: Manaus | D155: AM | E155: NORTE | F155: Avaliador 2 | G155: 15 | H155: 12 | I155: 12 | J155: 8 | K155: 8 | L155: 8 | M155: 8 | N155: 8 | O155: 0 | P155: 3 | Q155: 3 | R155: 0 | S155: 0 | T155: 0 | U155: 85 | W155: =W154 -> 83.5 | X155: =X154 -> CLASSIFICADO
A156: PESSOA FÍSICA | B156: =HYPERLINK("https://mapas.cultura.gov.br/inscricao/593593771","on-593593771") -> on-593593771 | C156: Belém | D156: PA | E156: NORTE | F156: Avaliador 1 | G156: 20 | H156: 15 | I156: 15 | J156: 10 | K156: 8 | L156: 8 | M156: 8 | N156: 8 | O156: 0 | P156: 0 | Q156: 3 | R156: 3 | S156: 0 | T156: 0 | U156: 98 | W156: =AVERAGE(U156,U157) -> 83.5 | X156: CLASSIFICADO
A157: PESSOA FÍSICA | B157: =HYPERLINK("https://mapas.cultura.gov.br/inscricao/593593771","on-593593771") -> on-593593771 | C157: Belém | D157: PA | E157: NORTE | F157: Avaliador 2 | G157: 10 | H157: 4 | I157: 15 | J157: 5 | K157: 8 | L157: 8 | M157: 8 | N157: 5 | O157: 0 | P157: 0 | Q157: 3 | R157: 3 | S157: 0 | T157: 0 | U157: 69 | W157: =W156 -> 83.5 | X157: =X156 -> CLASSIFICADO
A158: PESSOA FÍSICA | B158: =HYPERLINK("https://mapas.cultura.gov.br/inscricao/1636148001","on-1636148001") -> on-1636148001 | C158: Ananindeua | D158: PA | E158: NORTE | F158: Avaliador 1 | G158: 20 | H158: 15 | I158: 15 | J158: 10 | K158: 10 | L158: 10 | M158: 5 | N158: 5 | O158: 0 | P158: 0 | Q158: 0 | R158: 0 | S158: 3 | T158: 0 | U158: 93 | W158: =AVERAGE(U158,U159) -> 83 | X158: CLASSIFICADO
A159: PESSOA FÍSICA | B159: =HYPERLINK("https://mapas.cultura.gov.br/inscricao/1636148001","on-1636148001") -> on-1636148001 | C159: Ananindeua | D159: PA | E159: NORTE | F159: Avaliador 2 | G159: 15 | H159: 4 | I159: 15 | J159: 10 | K159: 8 | L159: 5 | M159: 8 | N159: 5 | O159: 0 | P159: 0 | Q159: 0 | R159: 0 | S159: 3 | T159: 0 | U159: 73 | W159: =W158 -> 83 | X159: =X158 -> CLASSIFICADO
A160: PESSOA FÍSICA | B160: =HYPERLINK("https://mapas.cultura.gov.br/inscricao/1813689565","on-1813689565") -> on-1813689565 | C160: Belém | D160: PA | E160: NORTE | F160: Avaliador 1 | G160: 15 | H160: 12 | I160: 12 | J160: 5 | K160: 8 | L160: 8 | M160: 8 | N160: 5 | O160: 0 | P160: 0 | Q160: 0 | R160: 0 | S160: 3 | T160: 0 | U160: 76 | W160: =AVERAGE(U160,U161) -> 83 | X160: CLASSIFICADO
A161: PESSOA FÍSICA | B161: =HYPERLINK("https://mapas.cultura.gov.br/inscricao/1813689565","on-1813689565") -> on-1813689565 | C161: Belém | D161: PA | E161: NORTE | F161: Avaliador 2 | G161: 20 | H161: 15 | I161: 15 | J161: 8 | K161: 8 | L161: 8 | M161: 5 | N161: 8 | O161: 0 | P161: 0 | Q161: 0 | R161: 0 | S161: 3 | T161: 0 | U161: 90 | W161: =W160 -> 83 | X161: =X160 -> CLASSIFICADO
A162: PESSOA FÍSICA | B162: =HYPERLINK("https://mapas.cultura.gov.br/inscricao/869901796","on-869901796") -> on-869901796 | C162: Manaus | D162: AM | E162: NORTE | F162: Avaliador 1 | G162: 15 | H162: 12 | I162: 12 | J162: 8 | K162: 8 | L162: 8 | M162: 8 | N162: 8 | O162: 0 | P162: 0 | Q162: 3 | R162: 0 | S162: 0 | T162: 0 | U162: 82 | W162: =AVERAGE(U162,U163) -> 82 | X162: CLASSIFICADO
A163: PESSOA FÍSICA | B163: =HYPERLINK("https://mapas.cultura.gov.br/inscricao/869901796","on-869901796") -> on-869901796 | C163: Manaus | D163: AM | E163: NORTE | F163: Avaliador 2 | G163: 15 | H163: 12 | I163: 12 | J163: 8 | K163: 8 | L163: 8 | M163: 8 | N163: 8 | O163: 0 | P163: 0 | Q163: 3 | R163: 0 | S163: 0 | T163: 0 | U163: 82 | W163: =W162 -> 82 | X163: =X162 -> CLASSIFICADO
A164: PESSOA FÍSICA | B164: =HYPERLINK("https://mapas.cultura.gov.br/inscricao/1984923075","on-1984923075") -> on-1984923075 | C164: Manaus | D164: AM | E164: NORTE | F164: Avaliador 1 | G164: 15 | H164: 15 | I164: 15 | J164: 8 | K164: 8 | L164: 5 | M164: 5 | N164: 8 | O164: 0 | P164: 0 | Q164: 3 | R164: 0 | S164: 0 | T164: 0 | U164: 82 | W164: =AVERAGE(U164,U165) -> 82 | X164: CLASSIFICADO
A165: PESSOA FÍSICA | B165: =HYPERLINK("https://mapas.cultura.gov.br/inscricao/1984923075","on-1984923075") -> on-1984923075 | C165: Manaus | D165: AM | E165: NORTE | F165: Avaliador 2 | G165: 15 | H165: 15 | I165: 15 | J165: 8 | K165: 8 | L165: 5 | M165: 5 | N165: 8 | O165: 0 | P165: 0 | Q165: 3 | R165: 0 | S165: 0 | T165: 0 | U165: 82 | W165: =W164 -> 82 | X165: =X164 -> CLASSIFICADO
A166: PESSOA FÍSICA | B166: =HYPERLINK("https://mapas.cultura.gov.br/inscricao/2028588851","on-2028588851") -> on-2028588851 | C166: Rio Branco | D166: AC | E166: NORTE | F166: Avaliador 1 | G166: 15 | H166: 12 | I166: 15 | J166: 8 | K166: 8 | L166: 10 | M166: 8 | N166: 8 | O166: 0 | P166: 0 | Q166: 0 | R166: 0 | S166: 0 | T166: 0 | U166: 84 | W166: =AVERAGE(U166,U167) -> 81.5 | X166: CLASSIFICADO
A167: PESSOA FÍSICA | B167: =HYPERLINK("https://mapas.cultura.gov.br/inscricao/2028588851","on-2028588851") -> on-2028588851 | C167: Rio Branco | D167: AC | E167: NORTE | F167: Avaliador 2 | G167: 15 | H167: 12 | I167: 12 | J167: 8 | K167: 8 | L167: 8 | M167: 8 | N167: 8 | O167: 0 | P167: 0 | Q167: 0 | R167: 0 | S167: 0 | T167: 0 | U167: 79 | W167: =W166 -> 81.5 | X167: =X166 -> CLASSIFICADO
A168: PESSOA FÍSICA | B168: =HYPERLINK("https://mapas.cultura.gov.br/inscricao/383382781","on-383382781") -> on-383382781 | C168: Macapá | D168: AP | E168: NORTE | F168: Avaliador 1 | G168: 10 | H168: 12 | I168: 12 | J168: 8 | K168: 8 | L168: 8 | M168: 10 | N168: 10 | O168: 0 | P168: 0 | Q168: 3 | R168: 0 | S168: 0 | T168: 0 | U168: 81 | W168: =AVERAGE(U168,U169) -> 81 | X168: CLASSIFICADO
A169: PESSOA FÍSICA | B169: =HYPERLINK("https://mapas.cultura.gov.br/inscricao/383382781","on-383382781") -> on-383382781 | C169: Macapá | D169: AP | E169: NORTE | F169: Avaliador 2 | G169: 10 | H169: 12 | I169: 12 | J169: 8 | K169: 8 | L169: 8 | M169: 10 | N169: 10 | O169: 0 | P169: 0 | Q169: 3 | R169: 0 | S169: 0 | T169: 0 | U169: 81 | W169: =W168 -> 81 | X169: =X168 -> CLASSIFICADO
A170: PESSOA FÍSICA | B170: =HYPERLINK("https://mapas.cultura.gov.br/inscricao/518298271","on-518298271") -> on-518298271 | C170: belem | D170: PA | E170: NORTE | F170: Avaliador 1 | G170: 15 | H170: 12 | I170: 4 | J170: 8 | K170: 5 | L170: 8 | M170: 8 | N170: 8 | O170: 0 | P170: 3 | Q170: 3 | R170: 3 | S170: 3 | T170: 0 | U170: 80 | W170: =AVERAGE(U170,U171) -> 81 | X170: CLASSIFICADO
A171: PESSOA FÍSICA | B171: =HYPERLINK("https://mapas.cultura.gov.br/inscricao/518298271","on-518298271") -> on-518298271 | C171: belem | D171: PA | E171: NORTE | F171: Avaliador 2 | G171: 15 | H171: 12 | I171: 15 | J171: 5 | K171: 8 | L171: 5 | M171: 5 | N171: 5 | O171: 0 | P171: 3 | Q171: 3 | R171: 3 | S171: 3 | T171: 0 | U171: 82 | W171: =W170 -> 81 | X171: =X170 -> CLASSIFICADO
A172: PESSOA FÍSICA | B172: =HYPERLINK("https://mapas.cultura.gov.br/inscricao/1540415866","on-1540415866") -> on-1540415866 | C172: Porto Velho | D172: RO | E172: NORTE | F172: Avaliador 1 | G172: 15 | H172: 12 | I172: 12 | J172: 8 | K172: 8 | L172: 8 | M172: 8 | N172: 8 | O172: 0 | P172: 3 | Q172: 0 | R172: 0 | S172: 0 | T172: 0 | U172: 82 | W172: =AVERAGE(U172,U173) -> 81 | X172: CLASSIFICADO
A173: PESSOA FÍSICA | B173: =HYPERLINK("https://mapas.cultura.gov.br/inscricao/1540415866","on-1540415866") -> on-1540415866 | C173: Porto Velho | D173: RO | E173: NORTE | F173: Avaliador 2 | G173: 15 | H173: 12 | I173: 15 | J173: 8 | K173: 8 | L173: 8 | M173: 8 | N173: 3 | O173: 0 | P173: 3 | Q173: 0 | R173: 0 | S173: 0 | T173: 0 | U173: 80 | W173: =W172 -> 81 | X173: =X172 -> CLASSIFICADO
A174: PESSOA FÍSICA | B174: =HYPERLINK("https://mapas.cultura.gov.br/inscricao/571588231","on-571588231") -> on-571588231 | C174: Ananindeua | D174: PA | E174: NORTE | F174: Avaliador 1 | G174: 15 | H174: 15 | I174: 12 | J174: 8 | K174: 8 | L174: 8 | M174: 5 | N174: 5 | O174: 0 | P174: 3 | Q174: 3 | R174: 0 | S174: 3 | T174: 0 | U174: 85 | W174: =AVERAGE(U174,U175) -> 80 | X174: CLASSIFICADO
A175: PESSOA FÍSICA | B175: =HYPERLINK("https://mapas.cultura.gov.br/inscricao/571588231","on-571588231") -> on-571588231 | C175: Ananindeua | D175: PA | E175: NORTE | F175: Avaliador 2 | G175: 15 | H175: 8 | I175: 15 | J175: 10 | K175: 5 | L175: 5 | M175: 5 | N175: 3 | O175: 0 | P175: 3 | Q175: 3 | R175: 0 | S175: 3 | T175: 0 | U175: 75 | W175: =W174 -> 80 | X175: =X174 -> CLASSIFICADO
A176: PESSOA FÍSICA | B176: =HYPERLINK("https://mapas.cultura.gov.br/inscricao/1310365985","on-1310365985") -> on-1310365985 | C176: Salinópolis | D176: PA | E176: NORTE | F176: Avaliador 1 | G176: 20 | H176: 15 | I176: 15 | J176: 8 | K176: 5 | L176: 5 | M176: 5 | N176: 5 | O176: 0 | P176: 0 | Q176: 3 | R176: 0 | S176: 0 | T176: 0 | U176: 81 | W176: =AVERAGE(U176,U177) -> 80 | X176: CLASSIFICADO
A177: PESSOA FÍSICA | B177: =HYPERLINK("https://mapas.cultura.gov.br/inscricao/1310365985","on-1310365985") -> on-1310365985 | C177: Salinópolis | D177: PA | E177: NORTE | F177: Avaliador 2 | G177: 15 | H177: 12 | I177: 15 | J177: 5 | K177: 8 | L177: 8 | M177: 8 | N177: 5 | O177: 0 | P177: 0 | Q177: 3 | R177: 0 | S177: 0 | T177: 0 | U177: 79 | W177: =W176 -> 80 | X177: =X176 -> CLASSIFICADO
A178: PESSOA FÍSICA | B178: =HYPERLINK("https://mapas.cultura.gov.br/inscricao/918720455","on-918720455") -> on-918720455 | C178: Rio Branco | D178: AC | E178: NORTE | F178: Avaliador 1 | G178: 10 | H178: 12 | I178: 12 | J178: 8 | K178: 5 | L178: 8 | M178: 8 | N178: 10 | O178: 0 | P178: 0 | Q178: 0 | R178: 3 | S178: 0 | T178: 0 | U178: 76 | W178: =AVERAGE(U178,U179) -> 79 | X178: CLASSIFICADO
A179: PESSOA FÍSICA | B179: =HYPERLINK("https://mapas.cultura.gov.br/inscricao/918720455","on-918720455") -> on-918720455 | C179: Rio Branco | D179: AC | E179: NORTE | F179: Avaliador 2 | G179: 15 | H179: 12 | I179: 12 | J179: 8 | K179: 8 | L179: 8 | M179: 8 | N179: 8 | O179: 0 | P179: 0 | Q179: 0 | R179: 3 | S179: 0 | T179: 0 | U179: 82 | W179: =W178 -> 79 | X179: =X178 -> CLASSIFICADO
A180: PESSOA FÍSICA | B180: =HYPERLINK("https://mapas.cultura.gov.br/inscricao/54259631","on-54259631") -> on-54259631 | C180: Ananindeua | D180: PA | E180: NORTE | F180: Avaliador 1 | G180: 20 | H180: 15 | I180: 15 | J180: 10 | K180: 10 | L180: 8 | M180: 3 | N180: 3 | O180: 0 | P180: 0 | Q180: 3 | R180: 0 | S180: 0 | T180: 0 | U180: 87 | W180: =AVERAGE(U180,U181) -> 79 | X180: CLASSIFICADO
A181: PESSOA FÍSICA | B181: =HYPERLINK("https://mapas.cultura.gov.br/inscricao/54259631","on-54259631") -> on-54259631 | C181: Ananindeua | D181: PA | E181: NORTE | F181: Avaliador 2 | G181: 15 | H181: 12 | I181: 15 | J181: 3 | K181: 5 | L181: 8 | M181: 5 | N181: 5 | O181: 0 | P181: 0 | Q181: 3 | R181: 0 | S181: 0 | T181: 0 | U181: 71 | W181: =W180 -> 79 | X181: =X180 -> CLASSIFICADO
A182: PESSOA FÍSICA | B182: =HYPERLINK("https://mapas.cultura.gov.br/inscricao/2046618274","on-2046618274") -> on-2046618274 | C182: Belém | D182: PA | E182: NORTE | F182: Avaliador 1 | G182: 10 | H182: 8 | I182: 12 | J182: 5 | K182: 8 | L182: 5 | M182: 5 | N182: 8 | O182: 0 | P182: 3 | Q182: 3 | R182: 0 | S182: 3 | T182: 0 | U182: 70 | W182: =AVERAGE(U182,U183) -> 79 | X182: CLASSIFICADO
A183: PESSOA FÍSICA | B183: =HYPERLINK("https://mapas.cultura.gov.br/inscricao/2046618274","on-2046618274") -> on-2046618274 | C183: Belém | D183: PA | E183: NORTE | F183: Avaliador 2 | G183: 15 | H183: 12 | I183: 15 | J183: 8 | K183: 8 | L183: 8 | M183: 8 | N183: 5 | O183: 0 | P183: 3 | Q183: 3 | R183: 0 | S183: 3 | T183: 0 | U183: 88 | W183: =W182 -> 79 | X183: =X182 -> CLASSIFICADO
A184: PESSOA FÍSICA | B184: =HYPERLINK("https://mapas.cultura.gov.br/inscricao/1899087633","on-1899087633") -> on-1899087633 | C184: Ananindeua | D184: PA | E184: NORTE | F184: Avaliador 1 | G184: 20 | H184: 15 | I184: 15 | J184: 10 | K184: 10 | L184: 3 | M184: 3 | N184: 10 | O184: 0 | P184: 0 | Q184: 3 | R184: 0 | S184: 0 | T184: 0 | U184: 89 | W184: =AVERAGE(U184,U185) -> 78.5 | X184: CLASSIFICADO
A185: PESSOA FÍSICA | B185: =HYPERLINK("https://mapas.cultura.gov.br/inscricao/1899087633","on-1899087633") -> on-1899087633 | C185: Ananindeua | D185: PA | E185: NORTE | F185: Avaliador 2 | G185: 10 | H185: 8 | I185: 15 | J185: 0 | K185: 8 | L185: 8 | M185: 8 | N185: 8 | O185: 0 | P185: 0 | Q185: 3 | R185: 0 | S185: 0 | T185: 0 | U185: 68 | W185: =W184 -> 78.5 | X185: =X184 -> CLASSIFICADO
A186: PESSOA FÍSICA | B186: =HYPERLINK("https://mapas.cultura.gov.br/inscricao/466002366","on-466002366") -> on-466002366 | C186: Ananindeua | D186: PA | E186: NORTE | F186: Avaliador 1 | G186: 20 | H186: 12 | I186: 8 | J186: 8 | K186: 5 | L186: 5 | M186: 5 | N186: 5 | O186: 0 | P186: 0 | Q186: 3 | R186: 0 | S186: 3 | T186: 0 | U186: 74 | W186: =AVERAGE(U186,U187) -> 78 | X186: CLASSIFICADO
A187: PESSOA FÍSICA | B187: =HYPERLINK("https://mapas.cultura.gov.br/inscricao/466002366","on-466002366") -> on-466002366 | C187: Ananindeua | D187: PA | E187: NORTE | F187: Avaliador 2 | G187: 15 | H187: 12 | I187: 15 | J187: 5 | K187: 8 | L187: 8 | M187: 8 | N187: 5 | O187: 0 | P187: 0 | Q187: 3 | R187: 0 | S187: 3 | T187: 0 | U187: 82 | W187: =W186 -> 78 | X187: =X186 -> CLASSIFICADO
A188: PESSOA FÍSICA | B188: =HYPERLINK("https://mapas.cultura.gov.br/inscricao/376819228","on-376819228") -> on-376819228 | C188: Ananindeua | D188: PA | E188: NORTE | F188: Avaliador 1 | G188: 20 | H188: 12 | I188: 12 | J188: 8 | K188: 8 | L188: 8 | M188: 8 | N188: 8 | O188: 0 | P188: 0 | Q188: 3 | R188: 0 | S188: 0 | T188: 0 | U188: 87 | W188: =AVERAGE(U188,U189) -> 77.5 | X188: CLASSIFICADO
A189: PESSOA FÍSICA | B189: =HYPERLINK("https://mapas.cultura.gov.br/inscricao/376819228","on-376819228") -> on-376819228 | C189: Ananindeua | D189: PA | E189: NORTE | F189: Avaliador 2 | G189: 15 | H189: 12 | I189: 15 | J189: 5 | K189: 8 | L189: 5 | M189: 5 | N189: 0 | O189: 0 | P189: 0 | Q189: 3 | R189: 0 | S189: 0 | T189: 0 | U189: 68 | W189: =W188 -> 77.5 | X189: =X188 -> CLASSIFICADO
A190: PESSOA FÍSICA | B190: =HYPERLINK("https://mapas.cultura.gov.br/inscricao/1292019045","on-1292019045") -> on-1292019045 | C190: Belém | D190: PA | E190: NORTE | F190: Avaliador 1 | G190: 5 | H190: 4 | I190: 15 | J190: 10 | K190: 10 | L190: 10 | M190: 10 | N190: 10 | O190: 0 | P190: 0 | Q190: 3 | R190: 0 | S190: 3 | T190: 0 | U190: 80 | W190: =AVERAGE(U190,U191) -> 77.5 | X190: CLASSIFICADO
A191: PESSOA FÍSICA | B191: =HYPERLINK("https://mapas.cultura.gov.br/inscricao/1292019045","on-1292019045") -> on-1292019045 | C191: Belém | D191: PA | E191: NORTE | F191: Avaliador 2 | G191: 10 | H191: 8 | I191: 15 | J191: 10 | K191: 8 | L191: 8 | M191: 5 | N191: 5 | O191: 0 | P191: 0 | Q191: 3 | R191: 0 | S191: 3 | T191: 0 | U191: 75 | W191: =W190 -> 77.5 | X191: =X190 -> CLASSIFICADO
A192: PESSOA FÍSICA | B192: =HYPERLINK("https://mapas.cultura.gov.br/inscricao/1977276754","on-1977276754") -> on-1977276754 | C192: Porto Velho | D192: RO | E192: NORTE | F192: Avaliador 1 | G192: 20 | H192: 15 | I192: 15 | J192: 10 | K192: 10 | L192: 3 | M192: 3 | N192: 3 | O192: 0 | P192: 3 | Q192: 3 | R192: 0 | S192: 3 | T192: 0 | U192: 88 | W192: =AVERAGE(U192,U193) -> 77.5 | X192: CLASSIFICADO
A193: PESSOA FÍSICA | B193: =HYPERLINK("https://mapas.cultura.gov.br/inscricao/1977276754","on-1977276754") -> on-1977276754 | C193: Porto Velho | D193: RO | E193: NORTE | F193: Avaliador 2 | G193: 10 | H193: 8 | I193: 15 | J193: 5 | K193: 5 | L193: 5 | M193: 5 | N193: 5 | O193: 0 | P193: 3 | Q193: 3 | R193: 0 | S193: 3 | T193: 0 | U193: 67 | W193: =W192 -> 77.5 | X193: =X192 -> CLASSIFICADO
A194: PESSOA FÍSICA | B194: =HYPERLINK("https://mapas.cultura.gov.br/inscricao/1858857408","on-1858857408") -> on-1858857408 | C194: Rio Branco | D194: AC | E194: NORTE | F194: Avaliador 1 | G194: 15 | H194: 12 | I194: 12 | J194: 5 | K194: 5 | L194: 10 | M194: 5 | N194: 5 | O194: 0 | P194: 0 | Q194: 3 | R194: 0 | S194: 0 | T194: 0 | U194: 72 | W194: =AVERAGE(U194,U195) -> 77 | X194: CLASSIFICADO
A195: PESSOA FÍSICA | B195: =HYPERLINK("https://mapas.cultura.gov.br/inscricao/1858857408","on-1858857408") -> on-1858857408 | C195: Rio Branco | D195: AC | E195: NORTE | F195: Avaliador 2 | G195: 15 | H195: 12 | I195: 12 | J195: 8 | K195: 8 | L195: 8 | M195: 8 | N195: 8 | O195: 0 | P195: 0 | Q195: 3 | R195: 0 | S195: 0 | T195: 0 | U195: 82 | W195: =W194 -> 77 | X195: =X194 -> CLASSIFICADO
A196: PESSOA FÍSICA | B196: =HYPERLINK("https://mapas.cultura.gov.br/inscricao/346947329","on-346947329") -> on-346947329 | C196: Abaetetuba | D196: PA | E196: NORTE | F196: Avaliador 1 | G196: 5 | H196: 8 | I196: 15 | J196: 10 | K196: 10 | L196: 10 | M196: 10 | N196: 10 | O196: 0 | P196: 0 | Q196: 3 | R196: 0 | S196: 0 | T196: 0 | U196: 81 | W196: =AVERAGE(U196,U197) -> 77 | X196: CLASSIFICADO
A197: PESSOA FÍSICA | B197: =HYPERLINK("https://mapas.cultura.gov.br/inscricao/346947329","on-346947329") -> on-346947329 | C197: Abaetetuba | D197: PA | E197: NORTE | F197: Avaliador 2 | G197: 15 | H197: 12 | I197: 15 | J197: 5 | K197: 5 | L197: 8 | M197: 5 | N197: 5 | O197: 0 | P197: 0 | Q197: 3 | R197: 0 | S197: 0 | T197: 0 | U197: 73 | W197: =W196 -> 77 | X197: =X196 -> CLASSIFICADO
A198: PESSOA FÍSICA | B198: =HYPERLINK("https://mapas.cultura.gov.br/inscricao/670214690","on-670214690") -> on-670214690 | C198: Boa Vista | D198: RR | E198: NORTE | F198: Avaliador 1 | G198: 20 | H198: 15 | I198: 15 | J198: 10 | K198: 3 | L198: 3 | M198: 10 | N198: 10 | O198: 0 | P198: 0 | Q198: 3 | R198: 0 | S198: 0 | T198: 0 | U198: 89 | W198: =AVERAGE(U198,U199) -> 76.5 | X198: CLASSIFICADO
A199: PESSOA FÍSICA | B199: =HYPERLINK("https://mapas.cultura.gov.br/inscricao/670214690","on-670214690") -> on-670214690 | C199: Boa Vista | D199: RR | E199: NORTE | F199: Avaliador 2 | G199: 10 | H199: 8 | I199: 15 | J199: 8 | K199: 5 | L199: 5 | M199: 5 | N199: 5 | O199: 0 | P199: 0 | Q199: 3 | R199: 0 | S199: 0 | T199: 0 | U199: 64 | W199: =W198 -> 76.5 | X199: =X198 -> CLASSIFICADO
A200: PESSOA FÍSICA | B200: =HYPERLINK("https://mapas.cultura.gov.br/inscricao/1205903138","on-1205903138") -> on-1205903138 | C200: Santarém | D200: PA | E200: NORTE | F200: Avaliador 1 | G200: 10 | H200: 8 | I200: 12 | J200: 8 | K200: 5 | L200: 8 | M200: 8 | N200: 8 | O200: 0 | P200: 3 | Q200: 3 | R200: 0 | S200: 0 | T200: 0 | U200: 73 | W200: =AVERAGE(U200,U201) -> 76 | X200: CLASSIFICADO
... 256 more rows

Sheet GRUPOS, COLETIVOS, CREW (2)
A1: CATEGORIA | B1: INSCRIÇÃO | C1: CIDADE | D1: UF | E1: REGIÃO | F1: AVALIADOR | G1: CRITÉRIOS DE AVALIAÇÃO E SELEÇÃO 1 | H1: CRITÉRIOS DE AVALIAÇÃO E SELEÇÃO 2 | I1: CRITÉRIOS DE AVALIAÇÃO E SELEÇÃO 3 | J1: CRITÉRIOS DE AVALIAÇÃO E SELEÇÃO 4 | K1: CRITÉRIOS DE AVALIAÇÃO E SELEÇÃO 5 | L1: CRITÉRIOS DE AVALIAÇÃO E SELEÇÃO 6 | M1: CRITÉRIOS DE AVALIAÇÃO E SELEÇÃO 7 | N1: CRITÉRIOS DE AVALIAÇÃO E SELEÇÃO 8 | O1: PONTUAÇÃO EXTRA - Pessoa com deficiência | P1: PONTUAÇÃO EXTRA - Mulher | Q1: PONTUAÇÃO EXTRA - Pessoa negra | R1: PONTUAÇÃO EXTRA -Indígena, matriz africana, de terreiro ou de povos ou de comunidades tradicionais | S1: PONTUAÇÃO EXTRA LGBTQIA+ | T1: PONTUAÇÃO EXTRA Idosa com 60 anos ou mais? | U1: NOTA POR AVALIADOR | V1: OBSERVAÇÃO | W1: NOTA PRELIMINAR | X1: STATUS
A2: GRUPOS, COLETIVOS, CREW | B2: =HYPERLINK("https://mapas.cultura.gov.br/inscricao/740883849","on-740883849") -> on-740883849 | C2: Ipixuna do Pará | D2: PA | E2: NORTE | F2: Avaliador 1 | G2: 20 | H2: 15 | I2: 15 | J2: 10 | K2: 10 | L2: 10 | M2: 10 | N2: 10 | O2: 0 | P2: 0 | Q2: 3 | R2: 0 | S2: 3 | T2: 0 | U2: =SUM(G2:T2) -> 106 | W2: =AVERAGE(U2,U3) -> 106 | X2: PRÉ-SELECIONADO
A3: GRUPOS, COLETIVOS, CREW | B3: =HYPERLINK("https://mapas.cultura.gov.br/inscricao/740883849","on-740883849") -> on-740883849 | C3: Ipixuna do Pará | D3: PA | E3: NORTE | F3: Avaliador 2 | G3: 20 | H3: 15 | I3: 15 | J3: 10 | K3: 10 | L3: 10 | M3: 10 | N3: 10 | O3: 0 | P3: 0 | Q3: 3 | R3: 0 | S3: 3 | T3: 0 | U3: 106 | W3: =W2 -> 106
A4: GRUPOS, COLETIVOS, CREW | B4: =HYPERLINK("https://mapas.cultura.gov.br/inscricao/1879620104","on-1879620104") -> on-1879620104 | C4: Belém | D4: PA | E4: NORTE | F4: Avaliador 1 | G4: 20 | H4: 15 | I4: 15 | J4: 10 | K4: 10 | L4: 10 | M4: 10 | N4: 10 | O4: 0 | P4: 3 | Q4: 3 | R4: 0 | S4: 0 | T4: 0 | U4: 106 | W4: =AVERAGE(U4,U5) -> 98 | X4: PRÉ-SELECIONADO
A5: GRUPOS, COLETIVOS, CREW | B5: =HYPERLINK("https://mapas.cultura.gov.br/inscricao/1879620104","on-1879620104") -> on-1879620104 | C5: Belém | D5: PA | E5: NORTE | F5: Avaliador 2 | G5: 15 | H5: 12 | I5: 15 | J5: 10 | K5: 8 | L5: 8 | M5: 8 | N5: 8 | O5: 0 | P5: 3 | Q5: 3 | R5: 0 | S5: 0 | T5: 0 | U5: 90 | W5: =W4 -> 98
A6: GRUPOS, COLETIVOS, CREW | B6: =HYPERLINK("https://mapas.cultura.gov.br/inscricao/166769160","on-166769160") -> on-166769160 | C6: Macapá | D6: AP | E6: NORTE | F6: Avaliador 1 | G6: 15 | H6: 15 | I6: 15 | J6: 8 | K6: 10 | L6: 10 | M6: 8 | N6: 8 | O6: 0 | P6: 3 | Q6: 0 | R6: 0 | S6: 0 | T6: 0 | U6: 92 | W6: =AVERAGE(U6,U7) -> 97.5 | X6: PRÉ-SELECIONADO
A7: GRUPOS, COLETIVOS, CREW | B7: =HYPERLINK("https://mapas.cultura.gov.br/inscricao/166769160","on-166769160") -> on-166769160 | C7: Macapá | D7: AP | E7: NORTE | F7: Avaliador 2 | G7: 20 | H7: 15 | I7: 15 | J7: 10 | K7: 10 | L7: 10 | M7: 10 | N7: 10 | O7: 0 | P7: 3 | Q7: 0 | R7: 0 | S7: 0 | T7: 0 | U7: 103 | W7: =W6 -> 97.5
A8: GRUPOS, COLETIVOS, CREW | B8: =HYPERLINK("https://mapas.cultura.gov.br/inscricao/138008738","on-138008738") -> on-138008738 | C8: Rio Branco | D8: AC | E8: NORTE | F8: Avaliador 1 | G8: 20 | H8: 15 | I8: 15 | J8: 10 | K8: 8 | L8: 10 | M8: 8 | N8: 8 | O8: 0 | P8: 0 | Q8: 3 | R8: 0 | S8: 3 | T8: 0 | U8: 100 | W8: =AVERAGE(U8,U9) -> 97.5 | X8: PRÉ-SELECIONADO
A9: GRUPOS, COLETIVOS, CREW | B9: =HYPERLINK("https://mapas.cultura.gov.br/inscricao/138008738","on-138008738") -> on-138008738 | C9: Rio Branco | D9: AC | E9: NORTE | F9: Avaliador 2 | G9: 15 | H9: 15 | I9: 15 | J9: 10 | K9: 8 | L9: 10 | M9: 8 | N9: 8 | O9: 0 | P9: 0 | Q9: 3 | R9: 0 | S9: 3 | T9: 0 | U9: 95 | W9: =W8 -> 97.5
A10: GRUPOS, COLETIVOS, CREW | B10: =HYPERLINK("https://mapas.cultura.gov.br/inscricao/708618824","on-708618824") -> on-708618824 | C10: Manaus | D10: AM | E10: NORTE | F10: Avaliador 1 | G10: 20 | H10: 15 | I10: 15 | J10: 10 | K10: 10 | L10: 10 | M10: 10 | N10: 10 | O10: 0 | P10: 0 | Q10: 3 | R10: 0 | S10: 0 | T10: 0 | U10: 103 | W10: =AVERAGE(U10,U11) -> 95.5 | X10: PRÉ-SELECIONADO
A11: GRUPOS, COLETIVOS, CREW | B11: =HYPERLINK("https://mapas.cultura.gov.br/inscricao/708618824","on-708618824") -> on-708618824 | C11: Manaus | D11: AM | E11: NORTE | F11: Avaliador 2 | G11: 15 | H11: 15 | I11: 15 | J11: 8 | K11: 8 | L11: 8 | M11: 8 | N11: 8 | O11: 0 | P11: 0 | Q11: 3 | R11: 0 | S11: 0 | T11: 0 | U11: 88 | W11: =W10 -> 95.5
A12: GRUPOS, COLETIVOS, CREW | B12: =HYPERLINK("https://mapas.cultura.gov.br/inscricao/1896187934","on-1896187934") -> on-1896187934 | C12: Maués | D12: AM | E12: NORTE | F12: Avaliador 1 | G12: 15 | H12: 15 | I12: 15 | J12: 10 | K12: 8 | L12: 10 | M12: 8 | N12: 10 | O12: 0 | P12: 0 | Q12: 3 | R12: 3 | S12: 3 | T12: 0 | U12: 100 | W12: =AVERAGE(U12,U13) -> 94 | X12: PRÉ-SELECIONADO
A13: GRUPOS, COLETIVOS, CREW | B13: =HYPERLINK("https://mapas.cultura.gov.br/inscricao/1896187934","on-1896187934") -> on-1896187934 | C13: Maués | D13: AM | E13: NORTE | F13: Avaliador 2 | G13: 15 | H13: 12 | I13: 12 | J13: 8 | K13: 8 | L13: 8 | M13: 8 | N13: 8 | O13: 0 | P13: 0 | Q13: 3 | R13: 3 | S13: 3 | T13: 0 | U13: 88 | W13: =W12 -> 94
A14: GRUPOS, COLETIVOS, CREW | B14: =HYPERLINK("https://mapas.cultura.gov.br/inscricao/1828764983","on-1828764983") -> on-1828764983 | C14: Porto Velho | D14: RO | E14: NORTE | F14: Avaliador 1 | G14: 20 | H14: 15 | I14: 15 | J14: 10 | K14: 5 | L14: 10 | M14: 10 | N14: 10 | O14: 0 | P14: 0 | Q14: 0 | R14: 0 | S14: 0 | T14: 0 | U14: 95 | W14: =AVERAGE(U14,U15) -> 93.5 | X14: PRÉ-SELECIONADO
A15: GRUPOS, COLETIVOS, CREW | B15: =HYPERLINK("https://mapas.cultura.gov.br/inscricao/1828764983","on-1828764983") -> on-1828764983 | C15: Porto Velho | D15: RO | E15: NORTE | F15: Avaliador 2 | G15: 20 | H15: 15 | I15: 15 | J15: 8 | K15: 10 | L15: 8 | M15: 8 | N15: 8 | O15: 0 | P15: 0 | Q15: 0 | R15: 0 | S15: 0 | T15: 0 | U15: 92 | W15: =W14 -> 93.5
A16: GRUPOS, COLETIVOS, CREW | B16: =HYPERLINK("https://mapas.cultura.gov.br/inscricao/2007026443","on-2007026443") -> on-2007026443 | C16: Rorainópolis | D16: RR | E16: NORTE | F16: Avaliador 1 | G16: 20 | H16: 15 | I16: 15 | J16: 10 | K16: 10 | L16: 10 | M16: 10 | N16: 10 | O16: 0 | P16: 0 | Q16: 3 | R16: 0 | S16: 0 | T16: 0 | U16: 103 | W16: =AVERAGE(U16,U17) -> 93.5 | X16: PRÉ-SELECIONADO
A17: GRUPOS, COLETIVOS, CREW | B17: =HYPERLINK("https://mapas.cultura.gov.br/inscricao/2007026443","on-2007026443") -> on-2007026443 | C17: Rorainópolis | D17: RR | E17: NORTE | F17: Avaliador 2 | G17: 15 | H17: 12 | I17: 15 | J17: 8 | K17: 10 | L17: 8 | M17: 8 | N17: 5 | O17: 0 | P17: 0 | Q17: 3 | R17: 0 | S17: 0 | T17: 0 | U17: 84 | W17: =W16 -> 93.5
A18: GRUPOS, COLETIVOS, CREW | B18: =HYPERLINK("https://mapas.cultura.gov.br/inscricao/2142743249","on-2142743249") -> on-2142743249 | C18: Palmas | D18: TO | E18: NORTE | F18: Avaliador 1 | G18: 20 | H18: 15 | I18: 15 | J18: 8 | K18: 8 | L18: 8 | M18: 8 | N18: 8 | O18: 0 | P18: 0 | Q18: 3 | R18: 0 | S18: 0 | T18: 0 | U18: 93 | W18: =AVERAGE(U18,U19) -> 93 | X18: PRÉ-SELECIONADO
A19: GRUPOS, COLETIVOS, CREW | B19: on-2142743249 | C19: Palmas | D19: TO | E19: NORTE | F19: Avaliador 2 | G19: 20 | H19: 15 | I19: 15 | J19: 8 | K19: 8 | L19: 8 | M19: 8 | N19: 8 | O19: 0 | P19: 0 | Q19: 3 | R19: 0 | T19: 0 | U19: 93 | W19: =W18 -> 93
A20: GRUPOS, COLETIVOS, CREW | B20: =HYPERLINK("https://mapas.cultura.gov.br/inscricao/1233169573","on-1233169573") -> on-1233169573 | C20: Manaus | D20: AM | E20: NORTE | F20: Avaliador 1 | G20: 15 | H20: 15 | I20: 15 | J20: 10 | K20: 10 | L20: 10 | M20: 8 | N20: 8 | O20: 0 | P20: 3 | Q20: 0 | R20: 0 | S20: 0 | T20: 0 | U20: 94 | W20: =AVERAGE(U20,U21) -> 93 | X20: PRÉ-SELECIONADO
A21: GRUPOS, COLETIVOS, CREW | B21: =HYPERLINK("https://mapas.cultura.gov.br/inscricao/1233169573","on-1233169573") -> on-1233169573 | C21: Manaus | D21: AM | E21: NORTE | F21: Avaliador 2 | G21: 20 | H21: 15 | I21: 12 | J21: 8 | K21: 8 | L21: 10 | M21: 8 | N21: 8 | O21: 0 | P21: 3 | Q21: 0 | R21: 0 | S21: 0 | T21: 0 | U21: 92 | W21: =W20 -> 93
A22: GRUPOS, COLETIVOS, CREW | B22: =HYPERLINK("https://mapas.cultura.gov.br/inscricao/1262720497","on-1262720497") -> on-1262720497 | C22: Manaus | D22: AM | E22: NORTE | F22: Avaliador 1 | G22: 15 | H22: 15 | I22: 15 | J22: 10 | K22: 10 | L22: 10 | M22: 10 | N22: 10 | O22: 0 | P22: 3 | Q22: 0 | R22: 0 | S22: 0 | T22: 0 | U22: 98 | W22: =AVERAGE(U22,U23) -> 92.5 | X22: PRÉ-SELECIONADO
A23: GRUPOS, COLETIVOS, CREW | B23: =HYPERLINK("https://mapas.cultura.gov.br/inscricao/1262720497","on-1262720497") -> on-1262720497 | C23: Manaus | D23: AM | E23: NORTE | F23: Avaliador 2 | G23: 15 | H23: 12 | I23: 15 | J23: 8 | K23: 10 | L23: 8 | M23: 8 | N23: 8 | O23: 0 | P23: 3 | Q23: 0 | R23: 0 | S23: 0 | T23: 0 | U23: 87 | W23: =W22 -> 92.5
A24: GRUPOS, COLETIVOS, CREW | B24: =HYPERLINK("https://mapas.cultura.gov.br/inscricao/1375987232","on-1375987232") -> on-1375987232 | C24: Macapá | D24: AP | E24: NORTE | F24: Avaliador 1 | G24: 15 | H24: 15 | I24: 15 | J24: 8 | K24: 10 | L24: 10 | M24: 10 | N24: 8 | O24: 0 | P24: 0 | Q24: 3 | R24: 0 | S24: 0 | T24: 0 | U24: 94 | W24: =AVERAGE(U24,U25) -> 90.5 | X24: PRÉ-SELECIONADO
A25: GRUPOS, COLETIVOS, CREW | B25: =HYPERLINK("https://mapas.cultura.gov.br/inscricao/1375987232","on-1375987232") -> on-1375987232 | C25: Macapá | D25: AP | E25: NORTE | F25: Avaliador 2 | G25: 15 | H25: 15 | I25: 15 | J25: 5 | K25: 10 | L25: 8 | M25: 8 | N25: 8 | O25: 0 | P25: 0 | Q25: 3 | R25: 0 | S25: 0 | T25: 0 | U25: 87 | W25: =W24 -> 90.5
A26: GRUPOS, COLETIVOS, CREW | B26: =HYPERLINK("https://mapas.cultura.gov.br/inscricao/630192933","on-630192933") -> on-630192933 | C26: Rio Branco | D26: AC | E26: NORTE | F26: Avaliador 1 | G26: 15 | H26: 15 | I26: 15 | J26: 8 | K26: 5 | L26: 10 | M26: 8 | N26: 10 | O26: 0 | P26: 0 | Q26: 3 | R26: 0 | S26: 0 | T26: 0 | U26: 89 | W26: =AVERAGE(U26,U27) -> 89.5 | X26: PRÉ-SELECIONADO
A27: GRUPOS, COLETIVOS, CREW | B27: =HYPERLINK("https://mapas.cultura.gov.br/inscricao/630192933","on-630192933") -> on-630192933 | C27: Rio Branco | D27: AC | E27: NORTE | F27: Avaliador 2 | G27: 15 | H27: 15 | I27: 15 | J27: 8 | K27: 8 | L27: 8 | M27: 10 | N27: 8 | O27: 0 | P27: 0 | Q27: 3 | R27: 0 | S27: 0 | T27: 0 | U27: 90 | W27: =W26 -> 89.5
A28: GRUPOS, COLETIVOS, CREW | B28: =HYPERLINK("https://mapas.cultura.gov.br/inscricao/1209196169","on-1209196169") -> on-1209196169 | C28: Belém | D28: PA | E28: NORTE | F28: Avaliador 1 | G28: 15 | H28: 12 | I28: 12 | J28: 8 | K28: 10 | L28: 10 | M28: 8 | N28: 10 | O28: 0 | P28: 3 | Q28: 3 | R28: 0 | S28: 0 | T28: 0 | U28: 91 | W28: =AVERAGE(U28,U29) -> 89 | X28: CLASSIFICADO
A29: GRUPOS, COLETIVOS, CREW | B29: =HYPERLINK("https://mapas.cultura.gov.br/inscricao/1209196169","on-1209196169") -> on-1209196169 | C29: Belém | D29: PA | E29: NORTE | F29: Avaliador 2 | G29: 15 | H29: 12 | I29: 8 | J29: 8 | K29: 10 | L29: 10 | M29: 8 | N29: 10 | O29: 0 | P29: 3 | Q29: 3 | R29: 0 | S29: 0 | T29: 0 | U29: 87 | W29: =W28 -> 89
A30: GRUPOS, COLETIVOS, CREW | B30: =HYPERLINK("https://mapas.cultura.gov.br/inscricao/1230603062","on-1230603062") -> on-1230603062 | C30: Boa Vista | D30: RR | E30: NORTE | F30: Avaliador 1 | G30: 15 | H30: 12 | I30: 15 | J30: 10 | K30: 10 | L30: 10 | M30: 10 | N30: 10 | O30: 0 | P30: 0 | Q30: 3 | R30: 0 | S30: 0 | T30: 0 | U30: 95 | W30: =AVERAGE(U30,U31) -> 88.5 | X30: CLASSIFICADO
A31: GRUPOS, COLETIVOS, CREW | B31: =HYPERLINK("https://mapas.cultura.gov.br/inscricao/1230603062","on-1230603062") -> on-1230603062 | C31: Boa Vista | D31: RR | E31: NORTE | F31: Avaliador 2 | G31: 15 | H31: 12 | I31: 15 | J31: 8 | K31: 8 | L31: 8 | M31: 8 | N31: 5 | O31: 0 | P31: 0 | Q31: 3 | R31: 0 | S31: 0 | T31: 0 | U31: 82 | W31: =W30 -> 88.5
A32: GRUPOS, COLETIVOS, CREW | B32: =HYPERLINK("https://mapas.cultura.gov.br/inscricao/944434666","on-944434666") -> on-944434666 | C32: Macapá | D32: AP | E32: NORTE | F32: Avaliador 1 | G32: 15 | H32: 15 | I32: 15 | J32: 8 | K32: 5 | L32: 10 | M32: 8 | N32: 8 | O32: 0 | P32: 3 | Q32: 0 | R32: 0 | S32: 0 | T32: 0 | U32: 87 | W32: =AVERAGE(U32,U33) -> 84.5 | X32: CLASSIFICADO
A33: GRUPOS, COLETIVOS, CREW | B33: =HYPERLINK("https://mapas.cultura.gov.br/inscricao/944434666","on-944434666") -> on-944434666 | C33: Macapá | D33: AP | E33: NORTE | F33: Avaliador 2 | G33: 15 | H33: 12 | I33: 12 | J33: 8 | K33: 8 | L33: 8 | M33: 8 | N33: 8 | O33: 0 | P33: 3 | Q33: 0 | R33: 0 | S33: 0 | T33: 0 | U33: 82 | W33: =W32 -> 84.5
A34: GRUPOS, COLETIVOS, CREW | B34: =HYPERLINK("https://mapas.cultura.gov.br/inscricao/910990469","on-910990469") -> on-910990469 | C34: Macapá | D34: AP | E34: NORTE | F34: Avaliador 1 | G34: 15 | H34: 12 | I34: 15 | J34: 8 | K34: 8 | L34: 10 | M34: 8 | N34: 8 | O34: 0 | P34: 0 | Q34: 0 | R34: 0 | S34: 0 | T34: 0 | U34: =SUM(G34:T34) -> 84 | W34: =AVERAGE(U34,U35) -> 79 | X34: CLASSIFICADO
A35: GRUPOS, COLETIVOS, CREW | B35: =HYPERLINK("https://mapas.cultura.gov.br/inscricao/910990469","on-910990469") -> on-910990469 | C35: Macapá | D35: AP | E35: NORTE | F35: Avaliador 2 | G35: 10 | H35: 12 | I35: 12 | J35: 8 | K35: 8 | L35: 8 | M35: 8 | N35: 8 | O35: 0 | P35: 0 | Q35: 0 | R35: 0 | S35: 0 | T35: 0 | U35: 74 | W35: =W34 -> 79
A36: GRUPOS, COLETIVOS, CREW | B36: =HYPERLINK("https://mapas.cultura.gov.br/inscricao/2026298045","on-2026298045") -> on-2026298045 | C36: Laranjal do Jari | D36: AP | E36: NORTE | F36: Avaliador 1 | G36: 10 | H36: 12 | I36: 12 | J36: 5 | K36: 8 | L36: 10 | M36: 5 | N36: 5 | O36: 0 | P36: 0 | Q36: 3 | R36: 0 | S36: 3 | T36: 0 | U36: 73 | W36: =AVERAGE(U36,U37) -> 79 | X36: CLASSIFICADO
A37: GRUPOS, COLETIVOS, CREW | B37: =HYPERLINK("https://mapas.cultura.gov.br/inscricao/2026298045","on-2026298045") -> on-2026298045 | C37: Laranjal do Jari | D37: AP | E37: NORTE | F37: Avaliador 2 | G37: 15 | H37: 12 | I37: 12 | J37: 8 | K37: 8 | L37: 8 | M37: 8 | N37: 8 | O37: 0 | P37: 0 | Q37: 3 | R37: 0 | S37: 3 | T37: 0 | U37: 85 | W37: =W36 -> 79
A38: GRUPOS, COLETIVOS, CREW | B38: =HYPERLINK("https://mapas.cultura.gov.br/inscricao/825665383","on-825665383") -> on-825665383 | C38: Manaus | D38: AM | E38: NORTE | F38: Avaliador 1 | G38: 15 | H38: 15 | I38: 15 | J38: 10 | K38: 0 | L38: 10 | M38: 8 | N38: 0 | O38: 0 | P38: 0 | Q38: 0 | R38: 0 | S38: 0 | T38: 0 | U38: 73 | W38: =AVERAGE(U38,U39) -> 74.5 | X38: CLASSIFICADO
A39: GRUPOS, COLETIVOS, CREW | B39: =HYPERLINK("https://mapas.cultura.gov.br/inscricao/825665383","on-825665383") -> on-825665383 | C39: Manaus | D39: AM | E39: NORTE | F39: Avaliador 2 | G39: 20 | H39: 15 | I39: 15 | J39: 8 | K39: 0 | L39: 10 | M39: 8 | N39: 0 | O39: 0 | P39: 0 | Q39: 0 | R39: 0 | S39: 0 | T39: 0 | U39: 76 | W39: =W38 -> 74.5
A40: GRUPOS, COLETIVOS, CREW | B40: =HYPERLINK("https://mapas.cultura.gov.br/inscricao/1459009551","on-1459009551") -> on-1459009551 | C40: Altamira | D40: PA | E40: NORTE | F40: Avaliador 1 | G40: 20 | H40: 15 | I40: 15 | J40: 10 | K40: 3 | L40: 3 | M40: 3 | N40: 3 | O40: 0 | P40: 3 | Q40: 3 | R40: 0 | S40: 3 | T40: 0 | U40: 81 | W40: =AVERAGE(U40,U41) -> 74 | X40: CLASSIFICADO
A41: GRUPOS, COLETIVOS, CREW | B41: =HYPERLINK("https://mapas.cultura.gov.br/inscricao/1459009551","on-1459009551") -> on-1459009551 | C41: Altamira | D41: PA | E41: NORTE | F41: Avaliador 2 | G41: 10 | H41: 8 | I41: 15 | J41: 5 | K41: 5 | L41: 5 | M41: 5 | N41: 5 | O41: 0 | P41: 3 | Q41: 3 | R41: 0 | S41: 3 | T41: 0 | U41: 67 | W41: =W40 -> 74
A42: GRUPOS, COLETIVOS, CREW | B42: =HYPERLINK("https://mapas.cultura.gov.br/inscricao/446889788","on-446889788") -> on-446889788 | C42: Macapá | D42: AP | E42: NORTE | F42: Avaliador 1 | G42: 15 | H42: 12 | I42: 15 | J42: 10 | K42: 5 | L42: 10 | M42: 0 | N42: 0 | O42: 0 | P42: 3 | Q42: 0 | R42: 0 | S42: 3 | T42: 0 | U42: 73 | W42: =AVERAGE(U42,U43) -> 72 | X42: CLASSIFICADO
A43: GRUPOS, COLETIVOS, CREW | B43: =HYPERLINK("https://mapas.cultura.gov.br/inscricao/446889788","on-446889788") -> on-446889788 | C43: Macapá | D43: AP | E43: NORTE | F43: Avaliador 2 | G43: 15 | H43: 12 | I43: 12 | J43: 10 | K43: 8 | L43: 8 | M43: 0 | N43: 0 | O43: 0 | P43: 3 | Q43: 0 | R43: 0 | S43: 3 | T43: 0 | U43: 71 | W43: =W42 -> 72
A44: GRUPOS, COLETIVOS, CREW | B44: =HYPERLINK("https://mapas.cultura.gov.br/inscricao/730044012","on-730044012") -> on-730044012 | C44: Manaus | D44: AM | E44: NORTE | F44: Avaliador 1 | G44: 10 | H44: 8 | I44: 15 | J44: 5 | K44: 8 | L44: 10 | M44: 8 | N44: 5 | O44: 0 | P44: 0 | Q44: 3 | R44: 0 | S44: 0 | T44: 0 | U44: 72 | W44: =AVERAGE(U44,U45) -> 63 | X44: CLASSIFICADO
A45: GRUPOS, COLETIVOS, CREW | B45: =HYPERLINK("https://mapas.cultura.gov.br/inscricao/730044012","on-730044012") -> on-730044012 | C45: Manaus | D45: AM | E45: NORTE | F45: Avaliador 2 | G45: 10 | H45: 8 | I45: 8 | J45: 5 | K45: 5 | L45: 5 | M45: 5 | N45: 5 | O45: 0 | P45: 0 | Q45: 3 | R45: 0 | S45: 0 | T45: 0 | U45: 54 | W45: =W44 -> 63
A46: GRUPOS, COLETIVOS, CREW | B46: =HYPERLINK("https://mapas.cultura.gov.br/inscricao/1186967826","on-1186967826") -> on-1186967826 | C46: Manaus | D46: AM | E46: NORTE | F46: Avaliador 1 | G46: 15 | H46: 12 | I46: 12 | J46: 5 | K46: 8 | L46: 10 | M46: 5 | N46: 5 | O46: 0 | P46: 0 | Q46: 0 | R46: 0 | S46: 0 | T46: 0 | U46: 72 | W46: =AVERAGE(U46,U47) -> 61.5 | X46: CLASSIFICADO
A47: GRUPOS, COLETIVOS, CREW | B47: =HYPERLINK("https://mapas.cultura.gov.br/inscricao/1186967826","on-1186967826") -> on-1186967826 | C47: Manaus | D47: AM | E47: NORTE | F47: Avaliador 2 | G47: 10 | H47: 8 | I47: 8 | J47: 5 | K47: 5 | L47: 5 | M47: 5 | N47: 5 | O47: 0 | P47: 0 | Q47: 0 | R47: 0 | S47: 0 | T47: 0 | U47: 51 | W47: =W46 -> 61.5
A48: GRUPOS, COLETIVOS, CREW | B48: =HYPERLINK("https://mapas.cultura.gov.br/inscricao/579854923","on-579854923") -> on-579854923 | C48: Manaus | D48: AM | E48: NORTE | F48: Avaliador 1 | G48: 20 | H48: 15 | I48: 15 | J48: 5 | K48: 10 | L48: 10 | M48: 10 | N48: 5 | O48: 0 | P48: 3 | Q48: 0 | R48: 0 | S48: 0 | T48: 0 | U48: 93 | V48: DESCLASSIFICADO COM BASE NO ITEM 7.10 | W48: =AVERAGE(U48,U49) -> 94.5 | X48: DESCLASSIFICADO
A49: GRUPOS, COLETIVOS, CREW | B49: =HYPERLINK("https://mapas.cultura.gov.br/inscricao/579854923","on-579854923") -> on-579854923 | C49: Manaus | D49: AM | E49: NORTE | F49: Avaliador 2 | G49: 20 | H49: 15 | I49: 12 | J49: 8 | K49: 10 | L49: 10 | M49: 10 | N49: 8 | O49: 0 | P49: 3 | Q49: 0 | R49: 0 | S49: 0 | T49: 0 | U49: 96 | W49: =W48 -> 94.5
A50: GRUPOS, COLETIVOS, CREW | B50: =HYPERLINK("https://mapas.cultura.gov.br/inscricao/428800612","on-428800612") -> on-428800612 | C50: Belém | D50: PA | E50: NORTE | F50: Avaliador 1 | G50: 15 | H50: 12 | I50: 8 | J50: 5 | K50: 8 | L50: 8 | M50: 8 | N50: 3 | O50: 0 | P50: 3 | Q50: 3 | R50: 0 | S50: 0 | T50: 0 | U50: 73 | V50: DESCLASSIFICADA COM BASE NO ITEM 7.7 | W50: =AVERAGE(U50,U51) -> 59 | X50: DESCLASSIFICADO
A51: GRUPOS, COLETIVOS, CREW | B51: =HYPERLINK("https://mapas.cultura.gov.br/inscricao/428800612","on-428800612") -> on-428800612 | C51: Belém | D51: PA | E51: NORTE | F51: Avaliador 2 | G51: 5 | H51: 4 | I51: 15 | J51: 3 | K51: 3 | L51: 3 | M51: 3 | N51: 3 | O51: 0 | P51: 3 | Q51: 3 | R51: 0 | S51: 0 | T51: 0 | U51: 45 | W51: =W50 -> 59
A52: GRUPOS, COLETIVOS, CREW | B52: =HYPERLINK("https://mapas.cultura.gov.br/inscricao/1969132502","on-1969132502") -> on-1969132502 | C52: Palmas | D52: TO | E52: NORTE | F52: Avaliador 1 | G52: 5 | H52: 8 | I52: 8 | J52: 0 | K52: 5 | L52: 8 | M52: 5 | N52: 3 | O52: 0 | P52: 0 | Q52: 3 | R52: 0 | S52: 0 | T52: 0 | U52: 45 | V52: DESCLASSIFICADO COM BASE NO ITEM 7.10 | W52: =AVERAGE(U52,U53) -> 51 | X52: DESCLASSIFICADO
A53: GRUPOS, COLETIVOS, CREW | B53: on-1969132502 | C53: Palmas | D53: TO | E53: NORTE | F53: Avaliador 2 | G53: 10 | H53: 8 | I53: 12 | J53: 3 | K53: 8 | L53: 5 | M53: 5 | N53: 3 | O53: 0 | P53: 0 | Q53: 3 | R53: 0 | T53: 0 | U53: 57 | W53: =W52 -> 51
A54: GRUPOS, COLETIVOS, CREW | B54: =HYPERLINK("https://mapas.cultura.gov.br/inscricao/216784099","on-216784099") -> on-216784099 | C54: Belém | D54: PA | E54: NORTE | F54: Avaliador 1 | G54: 5 | H54: 4 | I54: 4 | J54: 3 | K54: 3 | L54: 3 | M54: 3 | N54: 3 | O54: 0 | P54: 3 | Q54: 3 | R54: 3 | S54: 3 | T54: 0 | U54: =SUM(G54:T54) -> 40 | V54: DESCLASSIFICADA COM BASE NO ITEM 7.7 | W54: =AVERAGE(U54,U55) -> 49 | X54: DESCLASSIFICADO
A55: GRUPOS, COLETIVOS, CREW | B55: =HYPERLINK("https://mapas.cultura.gov.br/inscricao/216784099","on-216784099") -> on-216784099 | C55: Belém | D55: PA | E55: NORTE | F55: Avaliador 2 | G55: 5 | H55: 4 | I55: 15 | J55: 3 | K55: 3 | L55: 3 | M55: 3 | N55: 10 | O55: 0 | P55: 3 | Q55: 3 | R55: 3 | S55: 3 | T55: 0 | U55: =SUM(G55:T55) -> 58 | W55: =W54 -> 49
A56: GRUPOS, COLETIVOS, CREW | B56: =HYPERLINK("https://mapas.cultura.gov.br/inscricao/308665086","on-308665086") -> on-308665086 | C56: Paragominas | D56: PA | E56: NORTE | F56: Avaliador 1 | G56: 15 | H56: 8 | I56: 4 | J56: 8 | K56: 8 | L56: 8 | M56: 5 | N56: 3 | O56: 0 | P56: 0 | Q56: 0 | R56: 0 | S56: 0 | T56: 0 | U56: =SUM(G56:T56) -> 59 | V56: DESCLASSIFICADA COM BASE NO ITEM 7.7 | W56: =AVERAGE(U56,U57) -> 49 | X56: DESCLASSIFICADO
A57: GRUPOS, COLETIVOS, CREW | B57: =HYPERLINK("https://mapas.cultura.gov.br/inscricao/308665086","on-308665086") -> on-308665086 | C57: Paragominas | D57: PA | E57: NORTE | F57: Avaliador 2 | G57: 5 | H57: 4 | I57: 15 | J57: 3 | K57: 3 | L57: 3 | M57: 3 | N57: 3 | O57: 0 | P57: 0 | Q57: 0 | R57: 0 | S57: 0 | T57: 0 | U57: =SUM(G57:T57) -> 39 | W57: =W56 -> 49
A58: GRUPOS, COLETIVOS, CREW | B58: =HYPERLINK("https://mapas.cultura.gov.br/inscricao/1669722046","on-1669722046") -> on-1669722046 | C58: PALMAS | D58: TO | E58: NORTE | F58: Avaliador 1 | G58: 10 | H58: 12 | I58: 4 | J58: 3 | K58: 3 | L58: 5 | M58: 8 | N58: 3 | O58: 0 | P58: 0 | Q58: 0 | R58: 0 | S58: 0 | T58: 0 | U58: =SUM(G58:T58) -> 48 | V58: DESCLASSIFICADA COM BASE NO ITEM 7.7 | W58: =AVERAGE(U58,U59) -> 48.5 | X58: DESCLASSIFICADO
A59: GRUPOS, COLETIVOS, CREW | B59: on-1669722046 | C59: PALMAS | D59: TO | E59: NORTE | F59: Avaliador 2 | G59: 10 | H59: 8 | I59: 8 | J59: 5 | K59: 5 | L59: 5 | M59: 5 | N59: 3 | O59: 0 | P59: 0 | Q59: 0 | R59: 0 | T59: 0 | U59: 49 | W59: =W58 -> 48.5
A60: GRUPOS, COLETIVOS, CREW | B60: =HYPERLINK("https://mapas.cultura.gov.br/inscricao/1883936979","on-1883936979") -> on-1883936979 | C60: Belém | D60: PA | E60: NORTE | F60: Avaliador 1 | G60: 20 | H60: 8 | I60: 4 | J60: 3 | K60: 3 | L60: 3 | M60: 3 | N60: 3 | O60: 0 | P60: 0 | Q60: 0 | R60: 0 | S60: 0 | T60: 0 | U60: =SUM(G60:T60) -> 47 | V60: DESCLASSIFICADA COM BASE NO ITEM 7.7 | W60: =AVERAGE(U60,U61) -> 42.5 | X60: DESCLASSIFICADO
A61: GRUPOS, COLETIVOS, CREW | B61: =HYPERLINK("https://mapas.cultura.gov.br/inscricao/1883936979","on-1883936979") -> on-1883936979 | C61: Belém | D61: PA | E61: NORTE | F61: Avaliador 2 | G61: 10 | H61: 8 | I61: 15 | J61: 0 | K61: 0 | L61: 0 | M61: 0 | N61: 5 | O61: 0 | P61: 0 | Q61: 0 | R61: 0 | S61: 0 | T61: 0 | U61: =SUM(G61:T61) -> 38 | W61: =W60 -> 42.5
A62: GRUPOS, COLETIVOS, CREW | B62: =HYPERLINK("https://mapas.cultura.gov.br/inscricao/624936459","on-624936459") -> on-624936459 | C62: Babaçulândia | D62: TO | E62: NORTE | F62: Avaliador 1 | O62: 0 | P62: 0 | Q62: 3 | R62: 0 | S62: 3 | T62: 0 | U62: =SUM(G62:T62) -> 6 | V62: DESCLASSIFICADO COM BASE NO ITEM 8.1, ALÍNEA "h" | W62: =AVERAGE(U62,U63) -> 7 | X62: DESCLASSIFICADO
A63: GRUPOS, COLETIVOS, CREW | B63: on-624936459 | C63: Babaçulândia | D63: TO | E63: NORTE | F63: Avaliador 2 | G63: 5 | H63: 0 | I63: 0 | J63: 0 | K63: 0 | L63: 0 | M63: 0 | N63: 0 | O63: 0 | P63: 0 | Q63: 3 | R63: 0 | T63: 0 | U63: 8 | W63: =W62 -> 7
A64: GRUPOS, COLETIVOS, CREW | B64: =HYPERLINK("https://mapas.cultura.gov.br/inscricao/752473872","on-752473872") -> on-752473872 | C64: Presidente Figueiredo | D64: AM | E64: NORTE | F64: Avaliador 1 | G64: 0 | H64: 0 | I64: 0 | J64: 0 | K64: 0 | L64: 0 | M64: 0 | N64: 0 | V64: DESCLASSIFICADA COM BASE NO ITEM 7.7 | W64: =AVERAGE(U64,U65) -> 6 | X64: DESCLASSIFICADO
A65: GRUPOS, COLETIVOS, CREW | B65: =HYPERLINK("https://mapas.cultura.gov.br/inscricao/752473872","on-752473872") -> on-752473872 | C65: Presidente Figueiredo | D65: AM | E65: NORTE | F65: Avaliador 2 | G65: 0 | H65: 0 | I65: 0 | J65: 0 | K65: 0 | L65: 0 | M65: 0 | N65: 0 | O65: 0 | P65: 0 | Q65: 3 | R65: 3 | S65: 0 | T65: 0 | U65: =SUM(G65:T65) -> 6 | W65: =W64 -> 6
A66: GRUPOS, COLETIVOS, CREW | B66: =HYPERLINK("https://mapas.cultura.gov.br/inscricao/2067329766","on-2067329766") -> on-2067329766 | C66: Manaus | D66: AM | E66: NORTE | F66: Avaliador 1 | G66: 0 | H66: 0 | I66: 0 | J66: 0 | K66: 0 | L66: 0 | M66: 0 | N66: 0 | U66: =SUM(G66:T66) -> 0 | V66: DESCLASSIFICADA COM BASE NO ITEM 7.7 | W66: =AVERAGE(U66,U67) -> 3 | X66: DESCLASSIFICADO
A67: GRUPOS, COLETIVOS, CREW | B67: =HYPERLINK("https://mapas.cultura.gov.br/inscricao/2067329766","on-2067329766") -> on-2067329766 | C67: Manaus | D67: AM | E67: NORTE | F67: Avaliador 2 | G67: 0 | H67: 0 | I67: 0 | J67: 0 | K67: 0 | L67: 0 | M67: 0 | N67: 0 | O67: 0 | P67: 0 | Q67: 3 | R67: 0 | S67: 3 | T67: 0 | U67: =SUM(G67:T67) -> 6 | W67: =W66 -> 3
A68: GRUPOS, COLETIVOS, CREW | B68: =HYPERLINK("https://mapas.cultura.gov.br/inscricao/1023386309","on-1023386309") -> on-1023386309 | C68: Manaus | D68: AM | E68: NORTE | F68: Avaliador 1 | G68: 0 | H68: 0 | I68: 0 | J68: 0 | K68: 0 | L68: 0 | M68: 0 | N68: 0 | U68: =SUM(G68:T68) -> 0 | V68: DESCLASSIFICADA COM BASE NO ITEM 7.7 | W68: =AVERAGE(U68,U69) -> 3 | X68: DESCLASSIFICADO
A69: GRUPOS, COLETIVOS, CREW | B69: =HYPERLINK("https://mapas.cultura.gov.br/inscricao/1023386309","on-1023386309") -> on-1023386309 | C69: Manaus | D69: AM | E69: NORTE | F69: Avaliador 2 | G69: 0 | H69: 0 | I69: 0 | J69: 0 | K69: 0 | L69: 0 | M69: 0 | N69: 0 | O69: 0 | P69: 0 | Q69: 3 | R69: 0 | S69: 3 | T69: 0 | U69: =SUM(G69:T69) -> 6 | W69: =W68 -> 3
A70: GRUPOS, COLETIVOS, CREW | B70: =HYPERLINK("https://mapas.cultura.gov.br/inscricao/1686741147","on-1686741147") -> on-1686741147 | C70: Vilhena | D70: RO | E70: NORTE | F70: Avaliador 1 | G70: 20 | H70: 15 | I70: 15 | J70: 10 | K70: 10 | L70: 10 | M70: 10 | N70: 10 | O70: 0 | P70: 3 | Q70: 3 | R70: 0 | S70: 0 | T70: 0 | U70: 0 | V70: DESCLASSIFICADO COM BASE NO ITEM 6.1 | W70: =AVERAGE(U70,U71) -> 0 | X70: DESCLASSIFICADO
A71: GRUPOS, COLETIVOS, CREW | B71: =HYPERLINK("https://mapas.cultura.gov.br/inscricao/1686741147","on-1686741147") -> on-1686741147 | C71: Vilhena | D71: RO | E71: NORTE | F71: Avaliador 2 | G71: 20 | H71: 15 | I71: 15 | J71: 10 | K71: 10 | L71: 10 | M71: 10 | N71: 10 | O71: 0 | P71: 3 | Q71: 0 | R71: 0 | S71: 0 | T71: 0 | U71: 0 | W71: =W70 -> 0
A72: GRUPOS, COLETIVOS, CREW | B72: =HYPERLINK("https://mapas.cultura.gov.br/inscricao/1250084368","on-1250084368") -> on-1250084368 | C72: Rio Branco | D72: AC | E72: NORTE | F72: Avaliador 1 | U72: =SUM(G72:T72) -> 0 | V72: DESCLASSIFICADO COM BASE NO ITEM 7.5 | W72: =AVERAGE(U72,U73) -> 0 | X72: DESCLASSIFICADO
A73: GRUPOS, COLETIVOS, CREW | B73: =HYPERLINK("https://mapas.cultura.gov.br/inscricao/1250084368","on-1250084368") -> on-1250084368 | C73: Rio Branco | D73: AC | E73: NORTE | F73: Avaliador 2 | G73: 0 | H73: 0 | I73: 0 | J73: 0 | K73: 0 | L73: 0 | M73: 0 | N73: 0 | O73: 0 | P73: 0 | Q73: 0 | R73: 0 | S73: 0 | T73: 0 | U73: 0 | W73: =W72 -> 0
A74: GRUPOS, COLETIVOS, CREW | B74: =HYPERLINK("https://mapas.cultura.gov.br/inscricao/1832751108","on-1832751108") -> on-1832751108 | C74: Parintins | D74: AM | E74: NORTE | F74: Avaliador 1 | G74: 0 | H74: 0 | I74: 0 | J74: 0 | K74: 0 | L74: 0 | M74: 0 | N74: 0 | O74: 0 | P74: 0 | Q74: 0 | R74: 0 | S74: 0 | T74: 0 | U74: 0 | V74: DESCLASSIFICADO COM BASE NO ITEM 7.5 | W74: =AVERAGE(U74,U75) -> 0 | X74: DESCLASSIFICADO
A75: GRUPOS, COLETIVOS, CREW | B75: =HYPERLINK("https://mapas.cultura.gov.br/inscricao/1832751108","on-1832751108") -> on-1832751108 | C75: Parintins | D75: AM | E75: NORTE | F75: Avaliador 2 | G75: 0 | H75: 0 | I75: 0 | J75: 0 | K75: 0 | L75: 0 | M75: 0 | N75: 0 | O75: 0 | P75: 0 | Q75: 0 | R75: 0 | S75: 0 | T75: 0 | U75: 0 | W75: =W74 -> 0
A76: GRUPOS, COLETIVOS, CREW | B76: =HYPERLINK("https://mapas.cultura.gov.br/inscricao/15773321","on-15773321") -> on-15773321 | C76: Manaus | D76: AM | E76: NORTE | F76: Avaliador 1 | G76: 0 | H76: 0 | I76: 0 | J76: 0 | K76: 0 | L76: 0 | M76: 0 | N76: 0 | U76: 0 | V76: DESCLASSIFICADO COM BASE NO ITEM 7.5 | W76: =AVERAGE(U76,U77) -> 0 | X76: DESCLASSIFICADO
A77: GRUPOS, COLETIVOS, CREW | B77: =HYPERLINK("https://mapas.cultura.gov.br/inscricao/15773321","on-15773321") -> on-15773321 | C77: Manaus | D77: AM | E77: NORTE | F77: Avaliador 2 | G77: 0 | H77: 0 | I77: 0 | J77: 0 | K77: 0 | L77: 0 | M77: 0 | N77: 0 | O77: 0 | P77: 0 | Q77: 0 | R77: 0 | S77: 0 | T77: 0 | U77: 0 | W77: =W76 -> 0
O109: 0
O110: 3
G112: 0
G113: 5
G114: 10
G115: 15
G116: 20

Sheet INST. SEM FINS LUCRATIVOS
A1: CATEGORIA | B1: INSCRIÇÃO | C1: CIDADE | D1: UF | E1: REGIÃO | F1: AVALIADOR | G1: CRITÉRIOS DE AVALIAÇÃO E SELEÇÃO 1 | H1: CRITÉRIOS DE AVALIAÇÃO E SELEÇÃO 2 | I1: CRITÉRIOS DE AVALIAÇÃO E SELEÇÃO 3 | J1: CRITÉRIOS DE AVALIAÇÃO E SELEÇÃO 4 | K1: CRITÉRIOS DE AVALIAÇÃO E SELEÇÃO 5 | L1: CRITÉRIOS DE AVALIAÇÃO E SELEÇÃO 6 | M1: CRITÉRIOS DE AVALIAÇÃO E SELEÇÃO 7 | N1: CRITÉRIOS DE AVALIAÇÃO E SELEÇÃO 8 | O1: PONTUAÇÃO EXTRA - Pessoa com deficiência | P1: PONTUAÇÃO EXTRA - Mulher | Q1: PONTUAÇÃO EXTRA - Pessoa negra | R1: PONTUAÇÃO EXTRA -Indígena, matriz africana, de terreiro ou de povos ou de comunidades tradicionais | S1: PONTUAÇÃO EXTRA LGBTQIA+ | T1: PONTUAÇÃO EXTRA Idosa com 60 anos ou mais? | U1: NOTA POR AVALIADOR | V1: OBSERVAÇÃO DOU | W1: NOTA PRELIMINAR | X1: STATUS
A2: INST. SEM FINS LUCRATIVOS | B2: =HYPERLINK("https://mapas.cultura.gov.br/inscricao/119394310","on-119394310") -> on-119394310 | C2: Macapá | D2: AP | E2: NORTE | F2: Avaliador 1 | G2: 20 | H2: 15 | I2: 15 | J2: 10 | K2: 10 | L2: 10 | M2: 10 | N2: 10 | O2: 0 | P2: 0 | Q2: 3 | R2: 0 | S2: 0 | T2: 0 | U2: =SUM(G2:T2) -> 103 | W2: =AVERAGE(U2,U3) -> 102 | X2: PRÉ-SELECIONADO
A3: INST. SEM FINS LUCRATIVOS | B3: =HYPERLINK("https://mapas.cultura.gov.br/inscricao/119394310","on-119394310") -> on-119394310 | C3: Macapá | D3: AP | E3: NORTE | F3: Avaliador 2 | G3: 20 | H3: 15 | I3: 15 | J3: 8 | K3: 10 | L3: 10 | M3: 10 | N3: 10 | O3: 0 | P3: 0 | Q3: 3 | R3: 0 | S3: 0 | T3: 0 | U3: 101 | W3: =W2 -> 102 | X3: =X2 -> PRÉ-SELECIONADO
A4: INST. SEM FINS LUCRATIVOS | B4: =HYPERLINK("https://mapas.cultura.gov.br/inscricao/1643558311","on-1643558311") -> on-1643558311 | C4: Rio Branco | D4: AC | E4: NORTE | F4: Avaliador 1 | G4: 20 | H4: 15 | I4: 15 | J4: 10 | K4: 10 | L4: 10 | M4: 10 | N4: 10 | O4: 0 | P4: 0 | Q4: 0 | R4: 0 | S4: 0 | T4: 0 | U4: 100 | W4: =AVERAGE(U4,U5) -> 100 | X4: PRÉ-SELECIONADO
A5: INST. SEM FINS LUCRATIVOS | B5: =HYPERLINK("https://mapas.cultura.gov.br/inscricao/1643558311","on-1643558311") -> on-1643558311 | C5: Rio Branco | D5: AC | E5: NORTE | F5: Avaliador 2 | G5: 20 | H5: 15 | I5: 15 | J5: 10 | K5: 10 | L5: 10 | M5: 10 | N5: 10 | O5: 0 | P5: 0 | Q5: 0 | R5: 0 | S5: 0 | T5: 0 | U5: 100 | W5: =W4 -> 100 | X5: =X4 -> PRÉ-SELECIONADO
A6: INST. SEM FINS LUCRATIVOS | B6: =HYPERLINK("https://mapas.cultura.gov.br/inscricao/1409388843","on-1409388843") -> on-1409388843 | C6: Macapá | D6: AP | E6: NORTE | F6: Avaliador 1 | G6: 20 | H6: 15 | I6: 15 | J6: 5 | K6: 10 | L6: 10 | M6: 10 | N6: 8 | O6: 0 | P6: 0 | Q6: 0 | R6: 0 | S6: 0 | T6: 0 | U6: 93 | W6: =AVERAGE(U6,U7) -> 95.5 | X6: PRÉ-SELECIONADO
A7: INST. SEM FINS LUCRATIVOS | B7: =HYPERLINK("https://mapas.cultura.gov.br/inscricao/1409388843","on-1409388843") -> on-1409388843 | C7: Macapá | D7: AP | E7: NORTE | F7: Avaliador 2 | G7: 20 | H7: 15 | I7: 15 | J7: 8 | K7: 10 | L7: 10 | M7: 10 | N7: 10 | O7: 0 | P7: 0 | Q7: 0 | R7: 0 | S7: 0 | T7: 0 | U7: 98 | W7: =W6 -> 95.5 | X7: =X6 -> PRÉ-SELECIONADO
A8: INST. SEM FINS LUCRATIVOS | B8: =HYPERLINK("https://mapas.cultura.gov.br/inscricao/977451766","on-977451766") -> on-977451766 | C8: Sena Madureira | D8: AC | E8: NORTE | F8: Avaliador 1 | G8: 20 | H8: 12 | I8: 12 | J8: 3 | K8: 8 | L8: 10 | M8: 10 | N8: 10 | O8: 0 | P8: 0 | Q8: 0 | R8: 0 | S8: 0 | T8: 0 | U8: 85 | W8: =AVERAGE(U8,U9) -> 91.5 | X8: PRÉ-SELECIONADO
A9: INST. SEM FINS LUCRATIVOS | B9: =HYPERLINK("https://mapas.cultura.gov.br/inscricao/977451766","on-977451766") -> on-977451766 | C9: Sena Madureira | D9: AC | E9: NORTE | F9: Avaliador 2 | G9: 20 | H9: 15 | I9: 15 | J9: 8 | K9: 10 | L9: 10 | M9: 10 | N9: 10 | O9: 0 | P9: 0 | Q9: 0 | R9: 0 | S9: 0 | T9: 0 | U9: 98 | W9: =W8 -> 91.5 | X9: =X8 -> PRÉ-SELECIONADO
A10: INST. SEM FINS LUCRATIVOS | B10: =HYPERLINK("https://mapas.cultura.gov.br/inscricao/277323883","on-277323883") -> on-277323883 | C10: Manaus | D10: AM | E10: NORTE | F10: Avaliador 1 | G10: 15 | H10: 8 | I10: 15 | J10: 5 | K10: 8 | L10: 10 | M10: 10 | N10: 10 | O10: 0 | P10: 0 | Q10: 0 | R10: 0 | S10: 0 | T10: 0 | U10: 81 | W10: =AVERAGE(U10,U11) -> 89.5 | X10: PRÉ-SELECIONADO
A11: INST. SEM FINS LUCRATIVOS | B11: =HYPERLINK("https://mapas.cultura.gov.br/inscricao/277323883","on-277323883") -> on-277323883 | C11: Manaus | D11: AM | E11: NORTE | F11: Avaliador 2 | G11: 20 | H11: 15 | I11: 15 | J11: 8 | K11: 10 | L11: 10 | M11: 10 | N11: 10 | O11: 0 | P11: 0 | Q11: 0 | R11: 0 | S11: 0 | T11: 0 | U11: 98 | W11: =W10 -> 89.5 | X11: =X10 -> PRÉ-SELECIONADO
A12: INST. SEM FINS LUCRATIVOS | B12: =HYPERLINK("https://mapas.cultura.gov.br/inscricao/1460770497","on-1460770497") -> on-1460770497 | C12: Manaus | D12: AM | E12: NORTE | F12: Avaliador 1 | G12: 15 | H12: 15 | I12: 12 | J12: 8 | K12: 8 | L12: 10 | M12: 8 | N12: 5 | O12: 0 | P12: 0 | Q12: 3 | R12: 0 | S12: 0 | T12: 0 | U12: 84 | W12: =AVERAGE(U12,U13) -> 88 | X12: PRÉ-SELECIONADO
A13: INST. SEM FINS LUCRATIVOS | B13: =HYPERLINK("https://mapas.cultura.gov.br/inscricao/1460770497","on-1460770497") -> on-1460770497 | C13: Manaus | D13: AM | E13: NORTE | F13: Avaliador 2 | G13: 20 | H13: 12 | I13: 15 | J13: 8 | K13: 10 | L13: 8 | M13: 8 | N13: 8 | O13: 0 | P13: 0 | Q13: 3 | R13: 0 | S13: 0 | T13: 0 | U13: 92 | W13: =W12 -> 88 | X13: =X12 -> PRÉ-SELECIONADO
A14: INST. SEM FINS LUCRATIVOS | B14: =HYPERLINK("https://mapas.cultura.gov.br/inscricao/1385679329","on-1385679329") -> on-1385679329 | C14: Palmas | D14: TO | E14: NORTE | F14: Avaliador 1 | G14: 20 | H14: 15 | I14: 12 | J14: 8 | K14: 5 | L14: 8 | M14: 10 | N14: 5 | O14: 0 | P14: 3 | Q14: 3 | R14: 0 | S14: 3 | T14: 0 | U14: 92 | W14: =AVERAGE(U14,U15) -> 87 | X14: PRÉ-SELECIONADO
A15: INST. SEM FINS LUCRATIVOS | B15: =HYPERLINK("https://mapas.cultura.gov.br/inscricao/1385679329","on-1385679329") -> on-1385679329 | C15: Palmas | D15: TO | E15: NORTE | F15: Avaliador 2 | G15: 10 | H15: 15 | I15: 8 | J15: 8 | K15: 8 | L15: 8 | M15: 8 | N15: 8 | O15: 0 | P15: 3 | Q15: 3 | R15: 0 | S15: 3 | T15: 0 | U15: 82 | W15: =W14 -> 87 | X15: =X14 -> PRÉ-SELECIONADO
A16: INST. SEM FINS LUCRATIVOS | B16: =HYPERLINK("https://mapas.cultura.gov.br/inscricao/1087759367","on-1087759367") -> on-1087759367 | C16: Palmas | D16: TO | E16: NORTE | F16: Avaliador 1 | G16: 20 | H16: 15 | I16: 15 | J16: 5 | K16: 5 | L16: 10 | M16: 8 | N16: 8 | O16: 0 | P16: 0 | Q16: 0 | R16: 0 | S16: 0 | T16: 0 | U16: 86 | W16: =AVERAGE(U16,U17) -> 82.5 | X16: PRÉ-SELECIONADO
A17: INST. SEM FINS LUCRATIVOS | B17: =HYPERLINK("https://mapas.cultura.gov.br/inscricao/1087759367","on-1087759367") -> on-1087759367 | C17: Palmas | D17: TO | E17: NORTE | F17: Avaliador 2 | G17: 15 | H17: 12 | I17: 12 | J17: 8 | K17: 8 | L17: 8 | M17: 8 | N17: 8 | O17: 0 | P17: 0 | Q17: 0 | R17: 0 | S17: 0 | T17: 0 | U17: 79 | W17: =W16 -> 82.5 | X17: =X16 -> PRÉ-SELECIONADO
A18: INST. SEM FINS LUCRATIVOS | B18: =HYPERLINK("https://mapas.cultura.gov.br/inscricao/1238163101","on-1238163101") -> on-1238163101 | C18: Salinópolis | D18: PA | E18: NORTE | F18: Avaliador 1 | G18: 15 | H18: 12 | I18: 12 | J18: 8 | K18: 3 | L18: 8 | M18: 10 | N18: 3 | O18: 0 | P18: 0 | Q18: 3 | R18: 0 | S18: 0 | T18: 0 | U18: 74 | W18: =AVERAGE(U18,U19) -> 63 | X18: PRÉ-SELECIONADO
A19: INST. SEM FINS LUCRATIVOS | B19: =HYPERLINK("https://mapas.cultura.gov.br/inscricao/1238163101","on-1238163101") -> on-1238163101 | C19: Salinópolis | D19: PA | E19: NORTE | F19: Avaliador 2 | G19: 10 | H19: 8 | I19: 8 | J19: 5 | K19: 5 | L19: 5 | M19: 5 | N19: 3 | O19: 0 | P19: 0 | Q19: 3 | R19: 0 | S19: 0 | T19: 0 | U19: 52 | W19: =W18 -> 63 | X19: =X18 -> PRÉ-SELECIONADO
A20: INST. SEM FINS LUCRATIVOS | B20: =HYPERLINK("https://mapas.cultura.gov.br/inscricao/1593175570","on-1593175570") -> on-1593175570 | C20: Palmas | D20: TO | E20: NORTE | F20: Avaliador 1 | G20: 15 | H20: 12 | I20: 12 | J20: 3 | K20: 8 | L20: 10 | M20: 5 | N20: 0 | O20: 0 | P20: 0 | Q20: 0 | R20: 0 | S20: 0 | T20: 0 | U20: 65 | W20: =AVERAGE(U20,U21) -> 61.5 | X20: CLASSIFICADO
A21: INST. SEM FINS LUCRATIVOS | B21: =HYPERLINK("https://mapas.cultura.gov.br/inscricao/1593175570","on-1593175570") -> on-1593175570 | C21: Palmas | D21: TO | E21: NORTE | F21: Avaliador 2 | G21: 15 | H21: 8 | I21: 4 | J21: 5 | K21: 8 | L21: 5 | M21: 5 | N21: 8 | O21: 0 | P21: 0 | Q21: 0 | R21: 0 | S21: 0 | T21: 0 | U21: 58 | W21: =W20 -> 61.5 | X21: =X20 -> CLASSIFICADO
A22: INST. SEM FINS LUCRATIVOS | B22: =HYPERLINK("https://mapas.cultura.gov.br/inscricao/1086958586","on-1086958586") -> on-1086958586 | C22: Vilhena | D22: RO | E22: NORTE | F22: Avaliador 1 | G22: 10 | H22: 4 | I22: 8 | J22: 10 | K22: 5 | L22: 8 | M22: 8 | N22: 10 | O22: 0 | P22: 0 | Q22: 0 | R22: 0 | S22: 0 | T22: 0 | U22: 63 | W22: =AVERAGE(U22,U23) -> 61 | X22: CLASSIFICADO
A23: INST. SEM FINS LUCRATIVOS | B23: =HYPERLINK("https://mapas.cultura.gov.br/inscricao/1086958586","on-1086958586") -> on-1086958586 | C23: Vilhena | D23: RO | E23: NORTE | F23: Avaliador 2 | G23: 10 | H23: 4 | I23: 8 | J23: 8 | K23: 5 | L23: 8 | M23: 8 | N23: 8 | O23: 0 | P23: 0 | Q23: 0 | R23: 0 | S23: 0 | T23: 0 | U23: 59 | W23: =W22 -> 61 | X23: =X22 -> CLASSIFICADO
A24: INST. SEM FINS LUCRATIVOS | B24: =HYPERLINK("https://mapas.cultura.gov.br/inscricao/1581570871","on-1581570871") -> on-1581570871 | C24: Porto Nacional | D24: TO | E24: NORTE | F24: Avaliador 1 | G24: 15 | H24: 12 | I24: 15 | J24: 3 | K24: 3 | L24: 10 | M24: 5 | N24: 0 | O24: 0 | P24: 0 | Q24: 0 | R24: 0 | S24: 0 | T24: 0 | U24: 63 | V24: DESCLASSIFICADA COM BASE NO ITEM 7.7 | W24: =AVERAGE(U24,U25) -> 53 | X24: DESCLASSIFICADO
A25: INST. SEM FINS LUCRATIVOS | B25: =HYPERLINK("https://mapas.cultura.gov.br/inscricao/1581570871","on-1581570871") -> on-1581570871 | C25: Porto Nacional | D25: TO | E25: NORTE | F25: Avaliador 2 | G25: 5 | H25: 8 | I25: 4 | J25: 5 | K25: 5 | L25: 8 | M25: 5 | N25: 3 | O25: 0 | P25: 0 | Q25: 0 | R25: 0 | S25: 0 | T25: 0 | U25: 43 | W25: =W24 -> 53
A26: INST. SEM FINS LUCRATIVOS | B26: =HYPERLINK("https://mapas.cultura.gov.br/inscricao/1558090021","on-1558090021") -> on-1558090021 | C26: Manaus | D26: AM | E26: NORTE | F26: Avaliador 1 | G26: 10 | H26: 4 | I26: 4 | J26: 10 | K26: 3 | L26: 3 | M26: 3 | N26: 10 | O26: 0 | P26: 0 | Q26: 0 | R26: 3 | S26: 3 | T26: 0 | U26: 53 | V26: DESCLASSIFICADA COM BASE NO ITEM 7.7 | W26: =AVERAGE(U26,U27) -> 49 | X26: DESCLASSIFICADO
A27: INST. SEM FINS LUCRATIVOS | B27: =HYPERLINK("https://mapas.cultura.gov.br/inscricao/1558090021","on-1558090021") -> on-1558090021 | C27: Manaus | D27: AM | E27: NORTE | F27: Avaliador 2 | G27: 20 | H27: 0 | I27: 0 | J27: 5 | K27: 3 | L27: 3 | M27: 3 | N27: 5 | O27: 0 | P27: 0 | Q27: 0 | R27: 3 | S27: 3 | T27: 0 | U27: 45 | W27: =W26 -> 49
A28: INST. SEM FINS LUCRATIVOS | B28: =HYPERLINK("https://mapas.cultura.gov.br/inscricao/137539758","on-137539758") -> on-137539758 | C28: Laranjal do Jari | D28: AP | E28: NORTE | F28: Avaliador 1 | G28: 5 | H28: 4 | I28: 4 | J28: 3 | K28: 3 | L28: 3 | M28: 3 | N28: 3 | O28: 0 | P28: 3 | Q28: 0 | R28: 0 | S28: 0 | T28: 0 | U28: 31 | V28: DESCLASSIFICADA COM BASE NO ITEM 7.7 | W28: =AVERAGE(U28,U29) -> 26 | X28: DESCLASSIFICADO
A29: INST. SEM FINS LUCRATIVOS | B29: =HYPERLINK("https://mapas.cultura.gov.br/inscricao/137539758","on-137539758") -> on-137539758 | C29: Laranjal do Jari | D29: AP | E29: NORTE | F29: Avaliador 2 | G29: 15 | H29: 0 | I29: 0 | J29: 3 | K29: 0 | L29: 0 | M29: 0 | N29: 0 | O29: 0 | P29: 3 | Q29: 0 | R29: 0 | S29: 0 | T29: 0 | U29: 21 | W29: =W28 -> 26
A30: INST. SEM FINS LUCRATIVOS | B30: =HYPERLINK("https://mapas.cultura.gov.br/inscricao/979486327","on-979486327") -> on-979486327 | C30: Belém | D30: PA | E30: NORTE | F30: Avaliador 1 | G30: 0 | H30: 0 | I30: 0 | J30: 0 | K30: 0 | L30: 0 | M30: 0 | N30: 0 | O30: 0 | P30: 3 | Q30: 3 | R30: 0 | S30: 0 | T30: 3 | U30: 9 | V30: DESCLASSIFICADA COM BASE NO ITEM 7.7 | W30: =AVERAGE(U30,U31) -> 9 | X30: DESCLASSIFICADO
A31: INST. SEM FINS LUCRATIVOS | B31: =HYPERLINK("https://mapas.cultura.gov.br/inscricao/979486327","on-979486327") -> on-979486327 | C31: Belém | D31: PA | E31: NORTE | F31: Avaliador 2 | G31: 0 | H31: 0 | I31: 0 | J31: 0 | K31: 0 | L31: 0 | M31: 0 | N31: 0 | O31: 0 | P31: 3 | Q31: 3 | R31: 0 | S31: 0 | T31: 3 | U31: 9 | W31: =W30 -> 9
O60: 0
O61: 3
G63: 0
G64: 5
G65: 10
G66: 15
G67: 20

Sheet INSTITUIÇÕES SEM FINS LUCRATIVO (hidden)
